{"text_format":"3","workbook":"xlsx","n_sheets":10,"sheets":["Instruções","CADASTROS","LANCAMENTOS_KPIS","RENTABILIDADE_PRODUTO","SIMULADOR","OKRS","METAS","PLANO_ACAO","CALCULOS","RELATORIOS"],"not_rendered":{"charts":1,"images":6,"macros":1},"read":"whole","date_system":"1900"}

{"sheet":"Instruções","index":0,"n_rows":76,"n_cols":12,"rows_kept":76,"merged":[[9,2,9,11]]}
["http://authenticator.sapphirebusinesstech.com:8080/access/v1/validate"]
["123456789",{"$nulls":5},"Any use for this file other than sample using and technical analysis without authorization is stricly prohibited and protected by copyright"]
["contact@sapphirebusinesstech.com",{"$nulls":5},"Qualquer uso desse arquivo sem autorização outro que uso de exemplo e análise técnica é extritamente proibida e protegida por direitos autorais."]
[{"$nulls":6},"Cualquier uso de este archivo sin autorización que no sea para fines de ejemplo o análisis técnico está estrictamente prohibido y está protegido por derechos de autor."]
[200]
[]
[{"$f":"IF(A12=\"\",0,TODAY()-A12)","v":0}]
[null,null,"Instruções","Cadastros","KPIs","Rentabilidade","Simulador","OKRs","Metas","Plano de Ação","Cálculos","Relatórios"]
[]
[null,null,"INSTRUÇÕES DE USO — PLANILHA DE GESTÃO EMPRESARIAL"]
[]
[null,null,"1. OBJETIVO DA PLANILHA"]
[null,null,"Integrar as principais áreas de gestão do negócio: financeiro, comercial, marketing, OKRs e plano de ação, em um único painel."]
[null,null,"Gerenciar indicadores de desempenho (KPIs), rentabilidade por produto, metas, OKRs e ações corretivas de forma integrada."]
[null,null,"Público-alvo: gestores, empreendedores e analistas que precisam de visão consolidada e rápida do desempenho da empresa."]
[null,null,"Compatível com Excel 2019 ou superior. Não utiliza VBA nem macros — todas as automações são feitas por fórmulas."]
[]
[null,null,"2. ESTRUTURA DAS ABAS"]
[null,null,"Aba  |  Função  |  Tipo"]
[null,null,"Instruções  |  Manual de uso e navegação  |  Leitura"]
[null,null,"CADASTROS  |  Produtos, canais, áreas e indicadores  |  Preenchimento"]
[null,null,"LANCAMENTOS_KPIS  |  Lançamento mensal dos indicadores  |  Preenchimento"]
[null,null,"RENTABILIDADE_PRODUTO  |  Vendas, custos e margem por produto  |  Preenchimento"]
[null,null,"SIMULADOR  |  Simulação de cenários (preço, volume, custo)  |  Preenchimento"]
[null,null,"OKRS  |  Objetivos e resultados-chave do período  |  Preenchimento"]
[null,null,"METAS  |  Metas por indicador e acompanhamento  |  Preenchimento"]
[null,null,"PLANO_ACAO  |  Ações corretivas, responsáveis e prazos  |  Preenchimento"]
[null,null,"CALCULOS  |  Agregações e fórmulas de apoio  |  Técnica (não alterar)"]
[null,null,"RELATORIOS  |  Painel executivo e gráficos  |  Automática"]
[]
[null,null,"3. ORDEM CORRETA DE USO"]
[null,null,"1º  Preencher CADASTROS — produtos, canais, áreas e indicadores. Nada funciona sem esta etapa."]
[null,null,"2º  Lançar os dados mensais em LANCAMENTOS_KPIS (ano, mês, indicador e valor realizado)."]
[null,null,"3º  Registrar as vendas e custos por produto em RENTABILIDADE_PRODUTO."]
[null,null,"4º  Definir e atualizar OKRS e METAS para o período vigente."]
[null,null,"5º  Consultar RELATORIOS para a visão executiva consolidada."]
[null,null,"6º  Registrar as ações corretivas identificadas em PLANO_ACAO."]
[]
[null,null,"4. REGRAS DE PREENCHIMENTO"]
[null,null,"• Não apague fórmulas — preencha apenas as células de entrada (texto em azul)."]
[null,null,"• Utilize as listas suspensas sempre que disponíveis, para manter a padronização dos nomes."]
[null,null,"• Não altere a estrutura das tabelas: não insira nem remova colunas."]
[null,null,"• Datas sempre no formato dd/mm/aaaa."]
[null,null,"• Valores monetários em R$, digitados como números (sem texto, sem símbolos)."]
[null,null,"• Percentuais digitados como percentual (ex.: 12,5%) e não como número inteiro."]
[null,null,"• Escreva o nome do indicador exatamente como cadastrado em CADASTROS."]
[]
[null,null,"5. SIGNIFICADO DOS INDICADORES"]
[null,null,"• Receita Líquida: faturamento após deduções (impostos, devoluções e descontos)."]
[null,null,"• Margem de Contribuição: receita líquida menos custos variáveis — quanto sobra para cobrir os custos fixos."]
[null,null,"• CAC (Custo de Aquisição de Cliente): investimento em marketing e vendas ÷ número de novos clientes."]
[null,null,"• LTV (Lifetime Value): valor total gerado por um cliente ao longo de todo o relacionamento."]
[null,null,"• Relação LTV/CAC: indica se a aquisição de clientes é rentável (referência saudável: acima de 3x)."]
[null,null,"• Ponto de Equilíbrio: receita necessária para cobrir todos os custos (fixos + variáveis)."]
[null,null,"• Ticket Médio: receita líquida ÷ número de vendas no período."]
[null,null,"• Churn: percentual de clientes perdidos em relação à base de clientes ativos."]
[null,null,"• Taxa de Conversão: número de vendas ÷ número de leads gerados."]
[]
[null,null,"6. NAVEGAÇÃO"]
[null,null,"Os botões azuis no topo de cada aba (linhas 2 a 4) levam diretamente a cada módulo da planilha."]
[null,null,"O botão da aba em que você está fica destacado em azul claro com texto preto; os demais ficam em azul escuro com texto branco."]
[null,null,"O botão 'Instruções' está presente em todas as abas para retornar a este manual."]
[]
[null,null,"7. SOLUÇÃO DE ERROS COMUNS"]
[null,null,"• Valor não aparece no relatório: verifique se Ano e Mês estão preenchidos corretamente em LANCAMENTOS_KPIS."]
[null,null,"• Produto não encontrado: confira se o ID_Produto existe na aba CADASTROS."]
[null,null,"• Meta não atualiza: verifique se o indicador está escrito exatamente como no cadastro."]
[null,null,"• Fórmula retorna erro (#N/D, #VALOR!): não altere as fórmulas — preencha apenas os campos de entrada."]
[null,null,"• Gráfico não reflete os dados: confira se há lançamentos na aba LANCAMENTOS_KPIS para o ano selecionado."]
[null,null,"• Divisão por zero (#DIV/0!): normalmente indica que ainda não há dados lançados no período."]
[]
[null,null,"8. BOAS PRÁTICAS"]
[null,null,"• Atualize os lançamentos mensalmente, sempre até o 5º dia útil do mês seguinte."]
[null,null,"• Revise os OKRs e as metas a cada trimestre."]
[null,null,"• Faça uma cópia de segurança do arquivo antes de grandes alterações."]
[null,null,"• Registre no PLANO_ACAO toda ação decorrente de um desvio identificado nos relatórios."]

{"sheet":"CADASTROS","index":1,"n_rows":12,"n_cols":30,"rows_kept":12,"hidden":true,"merged":[[5,2,5,27]]}
[]
[null,"Instruções","Cadastros","KPIs","Rentabilidade","Simulador","OKRs","Metas","Plano de Ação","Cálculos","Relatórios"]
[]
[]
[]
[null,null,"CADASTROS"]
[null,null,"ID_Produto","Produto","Categoria","Unidade","Preco_Padrao","Custo_Padrao","Canal_Principal","Segmento","Status",null,"ID_Canal","Canal","Tipo_Canal","Responsavel","Custo_Medio_Mensal","Status",null,"ID_Area","Area","Gestor","Status",null,null,"ID_Indicador","Indicador","Unidade","Melhor_Leitura","Area_Responsavel"]
[null,null,"PRD001","Produto Exemplo 1","Software","licença",{"v":500,"d":"R£ 500.00"},{"v":150,"d":"R£ 150.00"},"Online","PME","Ativo",null,"CAN001","Online","Digital",null,{"v":1000,"d":"R£ 1,000.00"},"Ativo",null,"AREA001","Comercial",null,"Ativo",null,null,"IND001","Receita Líquida","R$","Maior é melhor","Comercial"]
[null,null,"PRD002","Produto Exemplo 2","Consultoria","pacote",{"v":2000,"d":"R£ 2,000.00"},{"v":800,"d":"R£ 800.00"},"Indicação","Corporativo","Ativo",null,"CAN002","Indicação","Orgânico",null,{"v":0,"d":"R£ 0.00"},"Ativo",null,"AREA002","Marketing",null,"Ativo",null,null,"IND002","CAC","R$","Menor é melhor","Marketing"]
[{"$nulls":19},"AREA003","Operações",null,"Ativo",null,null,"IND003","Churn","%","Menor é melhor","Comercial"]
[{"$nulls":25},"IND004","Margem de Contribuição","%","Maior é melhor","Financeiro"]
[{"$nulls":25},"IND005","Taxa de Conversão","%","Maior é melhor","Comercial"]

{"sheet":"LANCAMENTOS_KPIS","index":2,"n_rows":19,"n_cols":28,"rows_kept":19,"hidden":true,"merged":[[5,2,5,27]]}
[]
[null,"Instruções","Cadastros","KPIs","Rentabilidade","Simulador","OKRs","Metas","Plano de Ação","Cálculos","Relatórios"]
[]
[]
[]
[null,null,"LANÇAMENTOS DE KPIs"]
[null,null,"Ano","Mes","Data_Ref","Receita_Bruta","Deducoes","Receita_Liquida","Custos_Variaveis","Margem_Contribuicao_Valor","Margem_Contribuicao_%","Custos_Fixos","Lucro_Operacional","Investimento_Marketing","Leads","Vendas","Taxa_Conversao","Novos_Clientes","Clientes_Ativos","Clientes_Perdidos","Churn_%","CAC","Ticket_Medio","Receita_Recorrente","LTV","Payback_CAC","Ponto_Equilibrio","Observacoes"]
[null,null,2026,1,{"$f":"DATE(C8,D8,1)","v":"2026-01-01"},null,null,{"$f":"F8-G8","v":{"v":0,"d":"R£ 0.00"}},null,{"$f":"H8-I8","v":{"v":0,"d":"R£ 0.00"}},{"$f":"IF(H8=0,0,J8/H8)","v":{"v":0,"d":"0.00%"}},null,{"$f":"J8-L8","v":{"v":0,"d":"R£ 0.00"}},{"$nulls":3},{"$f":"IF(O8=0,0,P8/O8)","v":{"v":0,"d":"0.00%"}},{"$nulls":3},{"$f":"IF(S8=0,0,T8/S8)","v":{"v":0,"d":"0.00%"}},{"$f":"IF(R8=0,0,N8/R8)","v":{"v":0,"d":"R£ 0.00"}},{"$f":"IF(P8=0,0,H8/P8)","v":{"v":0,"d":"R£ 0.00"}},null,null,{"$f":"IF(J8=0,0,V8/IF(P8=0,0,J8/P8))","v":{"v":0,"d":"0.00"}},{"$f":"IF(K8=0,0,L8/K8)","v":{"v":0,"d":"R£ 0.00"}}]
[null,null,2026,1,{"$f":"DATE(C9,D9,1)","v":"2026-01-01"},null,null,{"$f":"F9-G9","v":{"v":0,"d":"R£ 0.00"}},null,{"$f":"H9-I9","v":{"v":0,"d":"R£ 0.00"}},{"$f":"IF(H9=0,0,J9/H9)","v":{"v":0,"d":"0.00%"}},null,{"$f":"J9-L9","v":{"v":0,"d":"R£ 0.00"}},{"$nulls":3},{"$f":"IF(O9=0,0,P9/O9)","v":{"v":0,"d":"0.00%"}},{"$nulls":3},{"$f":"IF(S9=0,0,T9/S9)","v":{"v":0,"d":"0.00%"}},{"$f":"IF(R9=0,0,N9/R9)","v":{"v":0,"d":"R£ 0.00"}},{"$f":"IF(P9=0,0,H9/P9)","v":{"v":0,"d":"R£ 0.00"}},null,null,{"$f":"IF(J9=0,0,V9/IF(P9=0,0,J9/P9))","v":{"v":0,"d":"0.00"}},{"$f":"IF(K9=0,0,L9/K9)","v":{"v":0,"d":"R£ 0.00"}}]
[null,null,2026,1,"2026-01-01",null,null,{"v":0,"d":"R£ 0.00"},null,{"v":0,"d":"R£ 0.00"},{"v":0,"d":"0.00%"},null,{"v":0,"d":"R£ 0.00"},{"$nulls":3},{"v":0,"d":"0.00%"},{"$nulls":3},{"v":0,"d":"0.00%"},{"v":0,"d":"R£ 0.00"},{"v":0,"d":"R£ 0.00"},null,null,{"v":0,"d":"0.00"},{"v":0,"d":"R£ 0.00"}]
[null,null,2026,1,"2026-01-01",null,null,{"v":0,"d":"R£ 0.00"},null,{"v":0,"d":"R£ 0.00"},{"v":0,"d":"0.00%"},null,{"v":0,"d":"R£ 0.00"},{"$nulls":3},{"v":0,"d":"0.00%"},{"$nulls":3},{"v":0,"d":"0.00%"},{"v":0,"d":"R£ 0.00"},{"v":0,"d":"R£ 0.00"},null,null,{"v":0,"d":"0.00"},{"v":0,"d":"R£ 0.00"}]
[null,null,2026,1,"2026-01-01",null,null,{"v":0,"d":"R£ 0.00"},null,{"v":0,"d":"R£ 0.00"},{"v":0,"d":"0.00%"},null,{"v":0,"d":"R£ 0.00"},{"$nulls":3},{"v":0,"d":"0.00%"},{"$nulls":3},{"v":0,"d":"0.00%"},{"v":0,"d":"R£ 0.00"},{"v":0,"d":"R£ 0.00"},null,null,{"v":0,"d":"0.00"},{"v":0,"d":"R£ 0.00"}]
[null,null,2026,1,"2026-01-01",null,null,{"v":0,"d":"R£ 0.00"},null,{"v":0,"d":"R£ 0.00"},{"v":0,"d":"0.00%"},null,{"v":0,"d":"R£ 0.00"},{"$nulls":3},{"v":0,"d":"0.00%"},{"$nulls":3},{"v":0,"d":"0.00%"},{"v":0,"d":"R£ 0.00"},{"v":0,"d":"R£ 0.00"},null,null,{"v":0,"d":"0.00"},{"v":0,"d":"R£ 0.00"}]
[null,null,2026,1,"2026-01-01",null,null,{"v":0,"d":"R£ 0.00"},null,{"v":0,"d":"R£ 0.00"},{"v":0,"d":"0.00%"},null,{"v":0,"d":"R£ 0.00"},{"$nulls":3},{"v":0,"d":"0.00%"},{"$nulls":3},{"v":0,"d":"0.00%"},{"v":0,"d":"R£ 0.00"},{"v":0,"d":"R£ 0.00"},null,null,{"v":0,"d":"0.00"},{"v":0,"d":"R£ 0.00"}]
[null,null,2026,1,"2026-01-01",null,null,{"v":0,"d":"R£ 0.00"},null,{"v":0,"d":"R£ 0.00"},{"v":0,"d":"0.00%"},null,{"v":0,"d":"R£ 0.00"},{"$nulls":3},{"v":0,"d":"0.00%"},{"$nulls":3},{"v":0,"d":"0.00%"},{"v":0,"d":"R£ 0.00"},{"v":0,"d":"R£ 0.00"},null,null,{"v":0,"d":"0.00"},{"v":0,"d":"R£ 0.00"}]
[null,null,2026,1,"2026-01-01",null,null,{"v":0,"d":"R£ 0.00"},null,{"v":0,"d":"R£ 0.00"},{"v":0,"d":"0.00%"},null,{"v":0,"d":"R£ 0.00"},{"$nulls":3},{"v":0,"d":"0.00%"},{"$nulls":3},{"v":0,"d":"0.00%"},{"v":0,"d":"R£ 0.00"},{"v":0,"d":"R£ 0.00"},null,null,{"v":0,"d":"0.00"},{"v":0,"d":"R£ 0.00"}]
[null,null,2026,1,"2026-01-01",null,null,{"v":0,"d":"R£ 0.00"},null,{"v":0,"d":"R£ 0.00"},{"v":0,"d":"0.00%"},null,{"v":0,"d":"R£ 0.00"},{"$nulls":3},{"v":0,"d":"0.00%"},{"$nulls":3},{"v":0,"d":"0.00%"},{"v":0,"d":"R£ 0.00"},{"v":0,"d":"R£ 0.00"},null,null,{"v":0,"d":"0.00"},{"v":0,"d":"R£ 0.00"}]
[null,null,2026,1,"2026-01-01",null,null,{"v":0,"d":"R£ 0.00"},null,{"v":0,"d":"R£ 0.00"},{"v":0,"d":"0.00%"},null,{"v":0,"d":"R£ 0.00"},{"$nulls":3},{"v":0,"d":"0.00%"},{"$nulls":3},{"v":0,"d":"0.00%"},{"v":0,"d":"R£ 0.00"},{"v":0,"d":"R£ 0.00"},null,null,{"v":0,"d":"0.00"},{"v":0,"d":"R£ 0.00"}]
[null,null,2026,1,"2026-01-01",null,null,{"v":0,"d":"R£ 0.00"},null,{"v":0,"d":"R£ 0.00"},{"v":0,"d":"0.00%"},null,{"v":0,"d":"R£ 0.00"},{"$nulls":3},{"v":0,"d":"0.00%"},{"$nulls":3},{"v":0,"d":"0.00%"},{"v":0,"d":"R£ 0.00"},{"v":0,"d":"R£ 0.00"},null,null,{"v":0,"d":"0.00"},{"v":0,"d":"R£ 0.00"}]

{"sheet":"RENTABILIDADE_PRODUTO","index":3,"n_rows":19,"n_cols":19,"rows_kept":19,"hidden":true,"merged":[[5,2,5,27]]}
[]
[null,"Instruções","Cadastros","KPIs","Rentabilidade","Simulador","OKRs","Metas","Plano de Ação","Cálculos","Relatórios"]
[]
[]
[]
[null,null,"RENTABILIDADE POR PRODUTO"]
[null,null,"Data","Ano","Mes","ID_Produto","Produto","Categoria","Quantidade","Preco_Unitario","Receita_Bruta","Custo_Unitario","Custo_Total","Margem_Valor","Margem_%","Canal","Segmento","Status_Rentabilidade","Observacoes"]
[{"$nulls":3},{"$f":"IF(C8=\"\",\"\",YEAR(C8))","v":""},{"$f":"IF(C8=\"\",\"\",MONTH(C8))","v":""},null,{"$f":"IFERROR(VLOOKUP(F8,CADASTROS!$C:$K,2,FALSE),\"\")","v":""},{"$f":"IFERROR(VLOOKUP(F8,CADASTROS!$C:$K,3,FALSE),\"\")","v":""},null,null,{"$f":"I8*J8","v":{"v":0,"d":"R£ 0.00"}},null,{"$f":"I8*L8","v":{"v":0,"d":"R£ 0.00"}},{"$f":"K8-M8","v":{"v":0,"d":"R£ 0.00"}},{"$f":"IF(K8=0,0,N8/K8)","v":{"v":0,"d":"0.00%"}},null,null,{"$f":"IF(O8>=0.4,\"Alta\",IF(O8>=0.2,\"Média\",\"Baixa\"))","v":"Baixa"}]
[{"$nulls":3},{"$f":"IF(C9=\"\",\"\",YEAR(C9))","v":""},{"$f":"IF(C9=\"\",\"\",MONTH(C9))","v":""},null,{"$f":"IFERROR(VLOOKUP(F9,CADASTROS!$C:$K,2,FALSE),\"\")","v":""},{"$f":"IFERROR(VLOOKUP(F9,CADASTROS!$C:$K,3,FALSE),\"\")","v":""},null,null,{"$f":"I9*J9","v":{"v":0,"d":"R£ 0.00"}},null,{"$f":"I9*L9","v":{"v":0,"d":"R£ 0.00"}},{"$f":"K9-M9","v":{"v":0,"d":"R£ 0.00"}},{"$f":"IF(K9=0,0,N9/K9)","v":{"v":0,"d":"0.00%"}},null,null,{"$f":"IF(O9>=0.4,\"Alta\",IF(O9>=0.2,\"Média\",\"Baixa\"))","v":"Baixa"}]
[{"$nulls":3},"","",null,{"$f":"IFERROR(VLOOKUP(F10,CADASTROS!$C:$K,2,FALSE),\"\")","v":""},{"$f":"IFERROR(VLOOKUP(F10,CADASTROS!$C:$K,3,FALSE),\"\")","v":""},null,null,{"v":0,"d":"R£ 0.00"},null,{"v":0,"d":"R£ 0.00"},{"v":0,"d":"R£ 0.00"},{"v":0,"d":"0.00%"},null,null,"Baixa"]
[{"$nulls":3},"","",null,{"$f":"IFERROR(VLOOKUP(F11,CADASTROS!$C:$K,2,FALSE),\"\")","v":""},{"$f":"IFERROR(VLOOKUP(F11,CADASTROS!$C:$K,3,FALSE),\"\")","v":""},null,null,{"v":0,"d":"R£ 0.00"},null,{"v":0,"d":"R£ 0.00"},{"v":0,"d":"R£ 0.00"},{"v":0,"d":"0.00%"},null,null,"Baixa"]
[{"$nulls":3},"","",null,{"$f":"IFERROR(VLOOKUP(F12,CADASTROS!$C:$K,2,FALSE),\"\")","v":""},{"$f":"IFERROR(VLOOKUP(F12,CADASTROS!$C:$K,3,FALSE),\"\")","v":""},null,null,{"v":0,"d":"R£ 0.00"},null,{"v":0,"d":"R£ 0.00"},{"v":0,"d":"R£ 0.00"},{"v":0,"d":"0.00%"},null,null,"Baixa"]
[{"$nulls":3},"","",null,{"$f":"IFERROR(VLOOKUP(F13,CADASTROS!$C:$K,2,FALSE),\"\")","v":""},{"$f":"IFERROR(VLOOKUP(F13,CADASTROS!$C:$K,3,FALSE),\"\")","v":""},null,null,{"v":0,"d":"R£ 0.00"},null,{"v":0,"d":"R£ 0.00"},{"v":0,"d":"R£ 0.00"},{"v":0,"d":"0.00%"},null,null,"Baixa"]
[{"$nulls":3},"","",null,{"$f":"IFERROR(VLOOKUP(F14,CADASTROS!$C:$K,2,FALSE),\"\")","v":""},{"$f":"IFERROR(VLOOKUP(F14,CADASTROS!$C:$K,3,FALSE),\"\")","v":""},null,null,{"v":0,"d":"R£ 0.00"},null,{"v":0,"d":"R£ 0.00"},{"v":0,"d":"R£ 0.00"},{"v":0,"d":"0.00%"},null,null,"Baixa"]
[{"$nulls":3},"","",null,{"$f":"IFERROR(VLOOKUP(F15,CADASTROS!$C:$K,2,FALSE),\"\")","v":""},{"$f":"IFERROR(VLOOKUP(F15,CADASTROS!$C:$K,3,FALSE),\"\")","v":""},null,null,{"v":0,"d":"R£ 0.00"},null,{"v":0,"d":"R£ 0.00"},{"v":0,"d":"R£ 0.00"},{"v":0,"d":"0.00%"},null,null,"Baixa"]
[{"$nulls":3},"","",null,{"$f":"IFERROR(VLOOKUP(F16,CADASTROS!$C:$K,2,FALSE),\"\")","v":""},{"$f":"IFERROR(VLOOKUP(F16,CADASTROS!$C:$K,3,FALSE),\"\")","v":""},null,null,{"v":0,"d":"R£ 0.00"},null,{"v":0,"d":"R£ 0.00"},{"v":0,"d":"R£ 0.00"},{"v":0,"d":"0.00%"},null,null,"Baixa"]
[{"$nulls":3},"","",null,{"$f":"IFERROR(VLOOKUP(F17,CADASTROS!$C:$K,2,FALSE),\"\")","v":""},{"$f":"IFERROR(VLOOKUP(F17,CADASTROS!$C:$K,3,FALSE),\"\")","v":""},null,null,{"v":0,"d":"R£ 0.00"},null,{"v":0,"d":"R£ 0.00"},{"v":0,"d":"R£ 0.00"},{"v":0,"d":"0.00%"},null,null,"Baixa"]
[{"$nulls":3},"","",null,{"$f":"IFERROR(VLOOKUP(F18,CADASTROS!$C:$K,2,FALSE),\"\")","v":""},{"$f":"IFERROR(VLOOKUP(F18,CADASTROS!$C:$K,3,FALSE),\"\")","v":""},null,null,{"v":0,"d":"R£ 0.00"},null,{"v":0,"d":"R£ 0.00"},{"v":0,"d":"R£ 0.00"},{"v":0,"d":"0.00%"},null,null,"Baixa"]
[{"$nulls":3},"","",null,{"$f":"IFERROR(VLOOKUP(F19,CADASTROS!$C:$K,2,FALSE),\"\")","v":""},{"$f":"IFERROR(VLOOKUP(F19,CADASTROS!$C:$K,3,FALSE),\"\")","v":""},null,null,{"v":0,"d":"R£ 0.00"},null,{"v":0,"d":"R£ 0.00"},{"v":0,"d":"R£ 0.00"},{"v":0,"d":"0.00%"},null,null,"Baixa"]

{"sheet":"SIMULADOR","index":4,"n_rows":19,"n_cols":12,"rows_kept":19,"hidden":true,"merged":[[5,2,5,27]]}
[]
[null,"Instruções","Cadastros","KPIs","Rentabilidade","Simulador","OKRs","Metas","Plano de Ação","Cálculos","Relatórios"]
[]
[]
[]
[null,null,"SIMULADOR DE CENÁRIOS"]
[null,null,"PREMISSAS BASE",null,"Valor",null,"PARÂMETROS DE CENÁRIO","Valor",null,null,"RESULTADOS SIMULADOS","Valor"]
[null,null,"Receita Base",null,{"v":0,"d":"R£ 0.00"},null,"Cenário","Realista",null,null,"Receita Simulada",{"$f":"E8*(1+H9)","v":{"v":0,"d":"R£ 0.00"}}]
[null,null,"Custos Variáveis Base",null,{"v":0,"d":"R£ 0.00"},null,"Ajuste Receita %",{"v":0,"d":"0.00%"},null,null,"Custo Variável Simulado",{"$f":"E9*(1+H12)","v":{"v":0,"d":"R£ 0.00"}}]
[null,null,"Custos Fixos Base",null,{"v":0,"d":"R£ 0.00"},null,"Ajuste Volume %",{"v":0,"d":"0.00%"},null,null,"Custo Fixo Simulado",{"$f":"E10*(1+H13)","v":{"v":0,"d":"R£ 0.00"}}]
[null,null,"Investimento Marketing Base",null,{"v":0,"d":"R£ 0.00"},null,"Ajuste Preço %",{"v":0,"d":"0.00%"},null,null,"Margem de Contribuição",{"$f":"L8-L9","v":{"v":0,"d":"R£ 0.00"}}]
[null,null,"Volume Base",null,0,null,"Ajuste Custo Variável %",{"v":0,"d":"0.00%"},null,null,"Lucro / Prejuízo",{"$f":"L11-L10","v":{"v":0,"d":"R£ 0.00"}}]
[null,null,"Preço Médio Base",null,{"v":0,"d":"R£ 0.00"},null,"Ajuste Custo Fixo %",{"v":0,"d":"0.00%"},null,null,"Ponto de Equilíbrio Simulado",{"$f":"IF(L8=0,0,IF(L11/L8=0,0,L10/(L11/L8)))","v":{"v":0,"d":"R£ 0.00"}}]
[{"$nulls":6},"Ajuste CAC %",{"v":0,"d":"0.00%"},null,null,"Volume Simulado",{"$f":"E12*(1+H10)","v":0}]
[{"$nulls":10},"Preço Médio Simulado",{"$f":"E13*(1+H11)","v":{"v":0,"d":"R£ 0.00"}}]
[null,null,"Cenário","Ajuste_Receita","Ajuste_Volume","Ajuste_Preco","Ajuste_Custo_Variavel","Ajuste_Custo_Fixo","Ajuste_CAC"]
[null,null,"Otimista",{"v":0.15,"d":"15.00%"},{"v":0.1,"d":"10.00%"},{"v":0.05,"d":"5.00%"},{"v":0.05,"d":"5.00%"},{"v":0.02,"d":"2.00%"},{"v":-0.1,"d":"-10.00%"}]
[null,null,"Realista",{"v":0,"d":"0.00%"},{"v":0,"d":"0.00%"},{"v":0,"d":"0.00%"},{"v":0,"d":"0.00%"},{"v":0,"d":"0.00%"},{"v":0,"d":"0.00%"}]
[null,null,"Pessimista",{"v":-0.15,"d":"-15.00%"},{"v":-0.1,"d":"-10.00%"},{"v":-0.05,"d":"-5.00%"},{"v":0.1,"d":"10.00%"},{"v":0.08,"d":"8.00%"},{"v":0.15,"d":"15.00%"}]

{"sheet":"OKRS","index":5,"n_rows":19,"n_cols":25,"rows_kept":19,"hidden":true,"merged":[[5,2,5,27]]}
[]
[null,"Instruções","Cadastros","KPIs","Rentabilidade","Simulador","OKRs","Metas","Plano de Ação","Cálculos","Relatórios"]
[]
[]
[]
[null,null,"OKRs — OBJETIVOS E RESULTADOS-CHAVE"]
[null,null,"ID_Objetivo","Ciclo","Area","Objetivo","Responsavel","Prioridade","Data_Inicio","Data_Fim","Status_Objetivo","ID_KR","Resultado_Chave","Peso_KR","Meta_KR","Realizado_KR","%_Conclusao_KR","Status_KR","KPI_Relacionado","Iniciativa_Relacionada","Risco","Observacoes",null,"RESUMO OKRs"]
[{"$nulls":16},{"$f":"IF(O8=0,0,P8/O8)","v":{"v":0,"d":"0.00%"}},{"$f":"IF(L8=\"\",\"\",IF(Q8>=1,\"Concluído\",IF(AND(J8<>\"\",TODAY()>J8),\"Atrasado\",IF(Q8=0,\"Não iniciado\",\"Em andamento\"))))","v":""},{"$nulls":5},"Total Objetivos",{"$f":"COUNTIF(C8:C100,\"<>\")","v":0}]
[{"$nulls":16},{"$f":"IF(O9=0,0,P9/O9)","v":{"v":0,"d":"0.00%"}},{"$f":"IF(L9=\"\",\"\",IF(Q9>=1,\"Concluído\",IF(AND(J9<>\"\",TODAY()>J9),\"Atrasado\",IF(Q9=0,\"Não iniciado\",\"Em andamento\"))))","v":""},{"$nulls":5},"% Médio Conclusão",{"$f":"IF(Y8=0,0,AVERAGEIF(Q8:Q100,\">0\"))","v":{"v":0,"d":"0.00%"}}]
[{"$nulls":16},{"v":0,"d":"0.00%"},"",{"$nulls":5},"OKRs Atrasados",{"$f":"COUNTIF(R8:R100,\"Atrasado\")","v":0}]
[{"$nulls":16},{"v":0,"d":"0.00%"},"",{"$nulls":5},"OKRs Concluídos",{"$f":"COUNTIF(R8:R100,\"Concluído\")","v":0}]
[{"$nulls":16},{"v":0,"d":"0.00%"},""]
[{"$nulls":16},{"v":0,"d":"0.00%"},""]
[{"$nulls":16},{"v":0,"d":"0.00%"},""]
[{"$nulls":16},{"v":0,"d":"0.00%"},""]
[{"$nulls":16},{"v":0,"d":"0.00%"},""]
[{"$nulls":16},{"v":0,"d":"0.00%"},""]
[{"$nulls":16},{"v":0,"d":"0.00%"},""]
[{"$nulls":16},{"v":0,"d":"0.00%"},""]

{"sheet":"METAS","index":6,"n_rows":10,"n_cols":12,"rows_kept":10,"hidden":true,"merged":[[5,2,5,27]]}
[]
[null,"Instruções","Cadastros","KPIs","Rentabilidade","Simulador","OKRs","Metas","Plano de Ação","Cálculos","Relatórios"]
[]
[]
[]
[null,null,"METAS — ACOMPANHAMENTO"]
[null,null,"Ano","Mes","Indicador","Area","Meta","Realizado","Desvio_Valor","Desvio_%","Status_Meta","Observacoes"]
[{"$nulls":8},{"$f":"H8-G8","v":{"v":0,"d":"0.00"}},{"$f":"IF(G8=0,0,I8/G8)","v":{"v":0,"d":"0.00%"}},{"$f":"IF(OR(G8=\"\",H8=\"\"),\"\",IF(H8>=G8,\"Atingida\",\"Abaixo\"))","v":""}]
[null,null,"Ano","Mes","Indicador","Area","Meta","Realizado","Desvio_Valor","Desvio_%","Status_Meta","Observacoes"]
[{"$nulls":8},{"$f":"H10-G10","v":{"v":0,"d":"0.00"}},{"$f":"IF(G10=0,0,I10/G10)","v":{"v":0,"d":"0.00%"}},{"$f":"IF(OR(G10=\"\",H10=\"\"),\"\",IF(H10>=G10,\"Atingida\",\"Abaixo\"))","v":""}]

{"sheet":"PLANO_ACAO","index":7,"n_rows":9,"n_cols":15,"rows_kept":9,"hidden":true,"merged":[[5,2,5,27]]}
[]
[null,"Instruções","Cadastros","KPIs","Rentabilidade","Simulador","OKRs","Metas","Plano de Ação","Cálculos","Relatórios"]
[]
[]
[]
[null,null,"PLANO DE AÇÃO"]
[null,null,"ID_Acao","Data_Registro","Area","KPI_ou_OKR_Relacionado","Problema_Oportunidade","Acao_Proposta","Responsavel","Prioridade","Prazo","Status","Impacto_Esperado","Data_Conclusao","Observacoes"]
[]
[null,null,"ID_Acao","Data_Registro","Area","KPI_ou_OKR_Relacionado","Problema_Oportunidade","Acao_Proposta","Responsavel","Prioridade","Prazo","Status","Impacto_Esperado","Data_Conclusao","Observacoes"]

{"sheet":"CALCULOS","index":8,"n_rows":19,"n_cols":49,"rows_kept":19,"hidden":true,"merged":[[5,2,5,27]]}
[]
[null,"Instruções","Cadastros","KPIs","Rentabilidade","Simulador","OKRs","Metas","Plano de Ação","Cálculos","Relatórios"]
[]
[]
[]
[null,null,"CÁLCULOS E AGREGAÇÕES"]
[null,null,"Ano","Mes","Receita_Liquida","Margem_Contribuicao_Valor","Margem_Contribuicao_%","Lucro_Operacional","CAC","LTV","Payback_CAC","Ponto_Equilibrio","Taxa_Conversao","Ticket_Medio","Churn_%",null,null,"ID_Produto","Produto","Receita_Total","Custo_Total","Margem_Valor","Margem_%","Quantidade_Total","Participacao_Receita","Ranking_Receita","Ranking_Margem","Classificacao_ABC",null,"Canal","Receita","Vendas","Ticket_Medio","Participacao",null,"Ano","Mes","Indicador","Meta","Realizado","Desvio","Status",null,"Ciclo","Area","Objetivo","%_Medio_KRs","Status_Geral","Responsavel"]
[null,null,2026,1,{"$f":"SUMIFS(LANCAMENTOS_KPIS!$H:$H,LANCAMENTOS_KPIS!$C:$C,C8,LANCAMENTOS_KPIS!$D:$D,D8)","v":{"v":0,"d":"R£ 0.00"}},{"$f":"SUMIFS(LANCAMENTOS_KPIS!$J:$J,LANCAMENTOS_KPIS!$C:$C,C8,LANCAMENTOS_KPIS!$D:$D,D8)","v":{"v":0,"d":"R£ 0.00"}},{"$f":"IF(E8=0,0,F8/E8)","v":{"v":0,"d":"0.00%"}},{"$f":"SUMIFS(LANCAMENTOS_KPIS!$M:$M,LANCAMENTOS_KPIS!$C:$C,C8,LANCAMENTOS_KPIS!$D:$D,D8)","v":{"v":0,"d":"R£ 0.00"}},{"$f":"IFERROR(SUMIFS(LANCAMENTOS_KPIS!$N:$N,LANCAMENTOS_KPIS!$C:$C,C8,LANCAMENTOS_KPIS!$D:$D,D8)/SUMIFS(LANCAMENTOS_KPIS!$R:$R,LANCAMENTOS_KPIS!$C:$C,C8,LANCAMENTOS_KPIS!$D:$D,D8),0)","v":{"v":0,"d":"R£ 0.00"}},{"$f":"SUMIFS(LANCAMENTOS_KPIS!$Y:$Y,LANCAMENTOS_KPIS!$C:$C,C8,LANCAMENTOS_KPIS!$D:$D,D8)","v":{"v":0,"d":"R£ 0.00"}},{"$f":"IFERROR(SUMIFS(LANCAMENTOS_KPIS!$Z:$Z,LANCAMENTOS_KPIS!$C:$C,C8,LANCAMENTOS_KPIS!$D:$D,D8),0)","v":{"v":0,"d":"0.00"}},{"$f":"SUMIFS(LANCAMENTOS_KPIS!$AA:$AA,LANCAMENTOS_KPIS!$C:$C,C8,LANCAMENTOS_KPIS!$D:$D,D8)","v":{"v":0,"d":"R£ 0.00"}},{"$f":"IF(SUMIFS(LANCAMENTOS_KPIS!$O:$O,LANCAMENTOS_KPIS!$C:$C,C8,LANCAMENTOS_KPIS!$D:$D,D8)=0,0,SUMIFS(LANCAMENTOS_KPIS!$P:$P,LANCAMENTOS_KPIS!$C:$C,C8,LANCAMENTOS_KPIS!$D:$D,D8)/SUMIFS(LANCAMENTOS_KPIS!$O:$O,LANCAMENTOS_KPIS!$C:$C,C8,LANCAMENTOS_KPIS!$D:$D,D8))","v":{"v":0,"d":"0.00%"}},{"$f":"IFERROR(SUMIFS(LANCAMENTOS_KPIS!$H:$H,LANCAMENTOS_KPIS!$C:$C,C8,LANCAMENTOS_KPIS!$D:$D,D8)/SUMIFS(LANCAMENTOS_KPIS!$P:$P,LANCAMENTOS_KPIS!$C:$C,C8,LANCAMENTOS_KPIS!$D:$D,D8),0)","v":{"v":0,"d":"R£ 0.00"}},{"$f":"IFERROR(SUMIFS(LANCAMENTOS_KPIS!$T:$T,LANCAMENTOS_KPIS!$C:$C,C8,LANCAMENTOS_KPIS!$D:$D,D8)/SUMIFS(LANCAMENTOS_KPIS!$S:$S,LANCAMENTOS_KPIS!$C:$C,C8,LANCAMENTOS_KPIS!$D:$D,D8),0)","v":{"v":0,"d":"0.00%"}},{"$nulls":3},{"$f":"IFERROR(VLOOKUP(R8,CADASTROS!$C:$K,2,FALSE),\"\")","v":""},{"$f":"IF(R8=\"\",0,SUMIFS(RENTABILIDADE_PRODUTO!$K:$K,RENTABILIDADE_PRODUTO!$F:$F,R8))","v":{"v":0,"d":"R£ 0.00"}},{"$f":"IF(R8=\"\",0,SUMIFS(RENTABILIDADE_PRODUTO!$M:$M,RENTABILIDADE_PRODUTO!$F:$F,R8))","v":{"v":0,"d":"R£ 0.00"}},{"$f":"T8-U8","v":{"v":0,"d":"R£ 0.00"}},{"$f":"IF(T8=0,0,V8/T8)","v":{"v":0,"d":"0.00%"}},{"$f":"IF(R8=\"\",0,SUMIFS(RENTABILIDADE_PRODUTO!$I:$I,RENTABILIDADE_PRODUTO!$F:$F,R8))","v":0},{"$f":"IF(SUM($T$8:$T$100)=0,0,T8/SUM($T$8:$T$100))","v":{"v":0,"d":"0.00%"}},{"$f":"IF(T8=0,\"\",RANK(T8,$T$8:$T$100,0))","v":""},{"$f":"IF(V8=0,\"\",RANK(V8,$V$8:$V$100,0))","v":""},{"$f":"IF(Y8=\"\",\"\",IF(Y8>=0.15,\"A\",IF(Y8>=0.05,\"B\",\"C\")))","v":"C"},null,null,{"$f":"IF(AD8=\"\",0,SUMIFS(RENTABILIDADE_PRODUTO!$K:$K,RENTABILIDADE_PRODUTO!$P:$P,AD8))","v":{"v":0,"d":"R£ 0.00"}},{"$f":"IF(AD8=\"\",0,SUMIFS(RENTABILIDADE_PRODUTO!$I:$I,RENTABILIDADE_PRODUTO!$P:$P,AD8))","v":0},{"$f":"IF(AF8=0,0,AE8/AF8)","v":{"v":0,"d":"R£ 0.00"}},{"$f":"IF(SUM($AE$8:$AE$100)=0,0,AE8/SUM($AE$8:$AE$100))","v":{"v":0,"d":"0.00%"}},null,{"$f":"METAS!C8","v":0},{"$f":"METAS!D8","v":0},{"$f":"METAS!E8","v":0},{"$f":"METAS!G8","v":{"v":0,"d":"0.00"}},{"$f":"METAS!H8","v":{"v":0,"d":"0.00"}},{"$f":"AN8-AM8","v":{"v":0,"d":"0.00"}},{"$f":"METAS!K8","v":""},null,{"$f":"OKRS!D8","v":0},{"$f":"OKRS!E8","v":0},{"$f":"OKRS!F8","v":0},{"$f":"OKRS!Q8","v":{"v":0,"d":"0.00%"}},{"$f":"OKRS!R8","v":""},{"$f":"OKRS!G8","v":0}]
[null,null,2026,1,{"$f":"SUMIFS(LANCAMENTOS_KPIS!$H:$H,LANCAMENTOS_KPIS!$C:$C,C9,LANCAMENTOS_KPIS!$D:$D,D9)","v":{"v":0,"d":"R£ 0.00"}},{"$f":"SUMIFS(LANCAMENTOS_KPIS!$J:$J,LANCAMENTOS_KPIS!$C:$C,C9,LANCAMENTOS_KPIS!$D:$D,D9)","v":{"v":0,"d":"R£ 0.00"}},{"$f":"IF(E9=0,0,F9/E9)","v":{"v":0,"d":"0.00%"}},{"$f":"SUMIFS(LANCAMENTOS_KPIS!$M:$M,LANCAMENTOS_KPIS!$C:$C,C9,LANCAMENTOS_KPIS!$D:$D,D9)","v":{"v":0,"d":"R£ 0.00"}},{"$f":"IFERROR(SUMIFS(LANCAMENTOS_KPIS!$N:$N,LANCAMENTOS_KPIS!$C:$C,C9,LANCAMENTOS_KPIS!$D:$D,D9)/SUMIFS(LANCAMENTOS_KPIS!$R:$R,LANCAMENTOS_KPIS!$C:$C,C9,LANCAMENTOS_KPIS!$D:$D,D9),0)","v":{"v":0,"d":"R£ 0.00"}},{"$f":"SUMIFS(LANCAMENTOS_KPIS!$Y:$Y,LANCAMENTOS_KPIS!$C:$C,C9,LANCAMENTOS_KPIS!$D:$D,D9)","v":{"v":0,"d":"R£ 0.00"}},{"$f":"IFERROR(SUMIFS(LANCAMENTOS_KPIS!$Z:$Z,LANCAMENTOS_KPIS!$C:$C,C9,LANCAMENTOS_KPIS!$D:$D,D9),0)","v":{"v":0,"d":"0.00"}},{"$f":"SUMIFS(LANCAMENTOS_KPIS!$AA:$AA,LANCAMENTOS_KPIS!$C:$C,C9,LANCAMENTOS_KPIS!$D:$D,D9)","v":{"v":0,"d":"R£ 0.00"}},{"$f":"IF(SUMIFS(LANCAMENTOS_KPIS!$O:$O,LANCAMENTOS_KPIS!$C:$C,C9,LANCAMENTOS_KPIS!$D:$D,D9)=0,0,SUMIFS(LANCAMENTOS_KPIS!$P:$P,LANCAMENTOS_KPIS!$C:$C,C9,LANCAMENTOS_KPIS!$D:$D,D9)/SUMIFS(LANCAMENTOS_KPIS!$O:$O,LANCAMENTOS_KPIS!$C:$C,C9,LANCAMENTOS_KPIS!$D:$D,D9))","v":{"v":0,"d":"0.00%"}},{"$f":"IFERROR(SUMIFS(LANCAMENTOS_KPIS!$H:$H,LANCAMENTOS_KPIS!$C:$C,C9,LANCAMENTOS_KPIS!$D:$D,D9)/SUMIFS(LANCAMENTOS_KPIS!$P:$P,LANCAMENTOS_KPIS!$C:$C,C9,LANCAMENTOS_KPIS!$D:$D,D9),0)","v":{"v":0,"d":"R£ 0.00"}},{"$f":"IFERROR(SUMIFS(LANCAMENTOS_KPIS!$T:$T,LANCAMENTOS_KPIS!$C:$C,C9,LANCAMENTOS_KPIS!$D:$D,D9)/SUMIFS(LANCAMENTOS_KPIS!$S:$S,LANCAMENTOS_KPIS!$C:$C,C9,LANCAMENTOS_KPIS!$D:$D,D9),0)","v":{"v":0,"d":"0.00%"}},{"$nulls":3},{"$f":"IFERROR(VLOOKUP(R9,CADASTROS!$C:$K,2,FALSE),\"\")","v":""},{"$f":"IF(R9=\"\",0,SUMIFS(RENTABILIDADE_PRODUTO!$K:$K,RENTABILIDADE_PRODUTO!$F:$F,R9))","v":{"v":0,"d":"R£ 0.00"}},{"$f":"IF(R9=\"\",0,SUMIFS(RENTABILIDADE_PRODUTO!$M:$M,RENTABILIDADE_PRODUTO!$F:$F,R9))","v":{"v":0,"d":"R£ 0.00"}},{"$f":"T9-U9","v":{"v":0,"d":"R£ 0.00"}},{"$f":"IF(T9=0,0,V9/T9)","v":{"v":0,"d":"0.00%"}},{"$f":"IF(R9=\"\",0,SUMIFS(RENTABILIDADE_PRODUTO!$I:$I,RENTABILIDADE_PRODUTO!$F:$F,R9))","v":0},{"$f":"IF(SUM($T$8:$T$100)=0,0,T9/SUM($T$8:$T$100))","v":{"v":0,"d":"0.00%"}},{"$f":"IF(T9=0,\"\",RANK(T9,$T$8:$T$100,0))","v":""},{"$f":"IF(V9=0,\"\",RANK(V9,$V$8:$V$100,0))","v":""},{"$f":"IF(Y9=\"\",\"\",IF(Y9>=0.15,\"A\",IF(Y9>=0.05,\"B\",\"C\")))","v":"C"},null,null,{"$f":"IF(AD9=\"\",0,SUMIFS(RENTABILIDADE_PRODUTO!$K:$K,RENTABILIDADE_PRODUTO!$P:$P,AD9))","v":{"v":0,"d":"R£ 0.00"}},{"$f":"IF(AD9=\"\",0,SUMIFS(RENTABILIDADE_PRODUTO!$I:$I,RENTABILIDADE_PRODUTO!$P:$P,AD9))","v":0},{"$f":"IF(AF9=0,0,AE9/AF9)","v":{"v":0,"d":"R£ 0.00"}},{"$f":"IF(SUM($AE$8:$AE$100)=0,0,AE9/SUM($AE$8:$AE$100))","v":{"v":0,"d":"0.00%"}},null,{"$f":"METAS!C9","v":"Ano"},{"$f":"METAS!D9","v":"Mes"},{"$f":"METAS!E9","v":"Indicador"},{"$f":"METAS!G9","v":"Meta"},{"$f":"METAS!H9","v":"Realizado"},{"$f":"AN9-AM9","v":{"$error":"#VALUE!"}},{"$f":"METAS!K9","v":"Status_Meta"},null,{"$f":"OKRS!D9","v":0},{"$f":"OKRS!E9","v":0},{"$f":"OKRS!F9","v":0},{"$f":"OKRS!Q9","v":{"v":0,"d":"0.00%"}},{"$f":"OKRS!R9","v":""},{"$f":"OKRS!G9","v":0}]
[null,null,2026,1,{"$f":"SUMIFS(LANCAMENTOS_KPIS!$H:$H,LANCAMENTOS_KPIS!$C:$C,C10,LANCAMENTOS_KPIS!$D:$D,D10)","v":{"v":0,"d":"R£ 0.00"}},{"$f":"SUMIFS(LANCAMENTOS_KPIS!$J:$J,LANCAMENTOS_KPIS!$C:$C,C10,LANCAMENTOS_KPIS!$D:$D,D10)","v":{"v":0,"d":"R£ 0.00"}},{"v":0,"d":"0.00%"},{"$f":"SUMIFS(LANCAMENTOS_KPIS!$M:$M,LANCAMENTOS_KPIS!$C:$C,C10,LANCAMENTOS_KPIS!$D:$D,D10)","v":{"v":0,"d":"R£ 0.00"}},{"$f":"IFERROR(SUMIFS(LANCAMENTOS_KPIS!$N:$N,LANCAMENTOS_KPIS!$C:$C,C10,LANCAMENTOS_KPIS!$D:$D,D10)/SUMIFS(LANCAMENTOS_KPIS!$R:$R,LANCAMENTOS_KPIS!$C:$C,C10,LANCAMENTOS_KPIS!$D:$D,D10),0)","v":{"v":0,"d":"R£ 0.00"}},{"$f":"SUMIFS(LANCAMENTOS_KPIS!$Y:$Y,LANCAMENTOS_KPIS!$C:$C,C10,LANCAMENTOS_KPIS!$D:$D,D10)","v":{"v":0,"d":"R£ 0.00"}},{"$f":"IFERROR(SUMIFS(LANCAMENTOS_KPIS!$Z:$Z,LANCAMENTOS_KPIS!$C:$C,C10,LANCAMENTOS_KPIS!$D:$D,D10),0)","v":{"v":0,"d":"0.00"}},{"$f":"SUMIFS(LANCAMENTOS_KPIS!$AA:$AA,LANCAMENTOS_KPIS!$C:$C,C10,LANCAMENTOS_KPIS!$D:$D,D10)","v":{"v":0,"d":"R£ 0.00"}},{"$f":"IF(SUMIFS(LANCAMENTOS_KPIS!$O:$O,LANCAMENTOS_KPIS!$C:$C,C10,LANCAMENTOS_KPIS!$D:$D,D10)=0,0,SUMIFS(LANCAMENTOS_KPIS!$P:$P,LANCAMENTOS_KPIS!$C:$C,C10,LANCAMENTOS_KPIS!$D:$D,D10)/SUMIFS(LANCAMENTOS_KPIS!$O:$O,LANCAMENTOS_KPIS!$C:$C,C10,LANCAMENTOS_KPIS!$D:$D,D10))","v":{"v":0,"d":"0.00%"}},{"$f":"IFERROR(SUMIFS(LANCAMENTOS_KPIS!$H:$H,LANCAMENTOS_KPIS!$C:$C,C10,LANCAMENTOS_KPIS!$D:$D,D10)/SUMIFS(LANCAMENTOS_KPIS!$P:$P,LANCAMENTOS_KPIS!$C:$C,C10,LANCAMENTOS_KPIS!$D:$D,D10),0)","v":{"v":0,"d":"R£ 0.00"}},{"$f":"IFERROR(SUMIFS(LANCAMENTOS_KPIS!$T:$T,LANCAMENTOS_KPIS!$C:$C,C10,LANCAMENTOS_KPIS!$D:$D,D10)/SUMIFS(LANCAMENTOS_KPIS!$S:$S,LANCAMENTOS_KPIS!$C:$C,C10,LANCAMENTOS_KPIS!$D:$D,D10),0)","v":{"v":0,"d":"0.00%"}},{"$nulls":3},{"$f":"IFERROR(VLOOKUP(R10,CADASTROS!$C:$K,2,FALSE),\"\")","v":""},{"$f":"IF(R10=\"\",0,SUMIFS(RENTABILIDADE_PRODUTO!$K:$K,RENTABILIDADE_PRODUTO!$F:$F,R10))","v":{"v":0,"d":"R£ 0.00"}},{"$f":"IF(R10=\"\",0,SUMIFS(RENTABILIDADE_PRODUTO!$M:$M,RENTABILIDADE_PRODUTO!$F:$F,R10))","v":{"v":0,"d":"R£ 0.00"}},{"v":0,"d":"R£ 0.00"},{"v":0,"d":"0.00%"},{"$f":"IF(R10=\"\",0,SUMIFS(RENTABILIDADE_PRODUTO!$I:$I,RENTABILIDADE_PRODUTO!$F:$F,R10))","v":0},{"v":0,"d":"0.00%"},"","","C",null,null,{"$f":"IF(AD10=\"\",0,SUMIFS(RENTABILIDADE_PRODUTO!$K:$K,RENTABILIDADE_PRODUTO!$P:$P,AD10))","v":{"v":0,"d":"R£ 0.00"}},{"$f":"IF(AD10=\"\",0,SUMIFS(RENTABILIDADE_PRODUTO!$I:$I,RENTABILIDADE_PRODUTO!$P:$P,AD10))","v":0},{"v":0,"d":"R£ 0.00"},{"v":0,"d":"0.00%"},null,{"$f":"METAS!C10","v":0},{"$f":"METAS!D10","v":0},{"$f":"METAS!E10","v":0},{"$f":"METAS!G10","v":{"v":0,"d":"0.00"}},{"$f":"METAS!H10","v":{"v":0,"d":"0.00"}},{"v":0,"d":"0.00"},{"$f":"METAS!K10","v":""},null,{"$f":"OKRS!D10","v":0},{"$f":"OKRS!E10","v":0},{"$f":"OKRS!F10","v":0},{"$f":"OKRS!Q10","v":{"v":0,"d":"0.00%"}},{"$f":"OKRS!R10","v":""},{"$f":"OKRS!G10","v":0}]
[null,null,2026,1,{"$f":"SUMIFS(LANCAMENTOS_KPIS!$H:$H,LANCAMENTOS_KPIS!$C:$C,C11,LANCAMENTOS_KPIS!$D:$D,D11)","v":{"v":0,"d":"R£ 0.00"}},{"$f":"SUMIFS(LANCAMENTOS_KPIS!$J:$J,LANCAMENTOS_KPIS!$C:$C,C11,LANCAMENTOS_KPIS!$D:$D,D11)","v":{"v":0,"d":"R£ 0.00"}},{"v":0,"d":"0.00%"},{"$f":"SUMIFS(LANCAMENTOS_KPIS!$M:$M,LANCAMENTOS_KPIS!$C:$C,C11,LANCAMENTOS_KPIS!$D:$D,D11)","v":{"v":0,"d":"R£ 0.00"}},{"$f":"IFERROR(SUMIFS(LANCAMENTOS_KPIS!$N:$N,LANCAMENTOS_KPIS!$C:$C,C11,LANCAMENTOS_KPIS!$D:$D,D11)/SUMIFS(LANCAMENTOS_KPIS!$R:$R,LANCAMENTOS_KPIS!$C:$C,C11,LANCAMENTOS_KPIS!$D:$D,D11),0)","v":{"v":0,"d":"R£ 0.00"}},{"$f":"SUMIFS(LANCAMENTOS_KPIS!$Y:$Y,LANCAMENTOS_KPIS!$C:$C,C11,LANCAMENTOS_KPIS!$D:$D,D11)","v":{"v":0,"d":"R£ 0.00"}},{"$f":"IFERROR(SUMIFS(LANCAMENTOS_KPIS!$Z:$Z,LANCAMENTOS_KPIS!$C:$C,C11,LANCAMENTOS_KPIS!$D:$D,D11),0)","v":{"v":0,"d":"0.00"}},{"$f":"SUMIFS(LANCAMENTOS_KPIS!$AA:$AA,LANCAMENTOS_KPIS!$C:$C,C11,LANCAMENTOS_KPIS!$D:$D,D11)","v":{"v":0,"d":"R£ 0.00"}},{"$f":"IF(SUMIFS(LANCAMENTOS_KPIS!$O:$O,LANCAMENTOS_KPIS!$C:$C,C11,LANCAMENTOS_KPIS!$D:$D,D11)=0,0,SUMIFS(LANCAMENTOS_KPIS!$P:$P,LANCAMENTOS_KPIS!$C:$C,C11,LANCAMENTOS_KPIS!$D:$D,D11)/SUMIFS(LANCAMENTOS_KPIS!$O:$O,LANCAMENTOS_KPIS!$C:$C,C11,LANCAMENTOS_KPIS!$D:$D,D11))","v":{"v":0,"d":"0.00%"}},{"$f":"IFERROR(SUMIFS(LANCAMENTOS_KPIS!$H:$H,LANCAMENTOS_KPIS!$C:$C,C11,LANCAMENTOS_KPIS!$D:$D,D11)/SUMIFS(LANCAMENTOS_KPIS!$P:$P,LANCAMENTOS_KPIS!$C:$C,C11,LANCAMENTOS_KPIS!$D:$D,D11),0)","v":{"v":0,"d":"R£ 0.00"}},{"$f":"IFERROR(SUMIFS(LANCAMENTOS_KPIS!$T:$T,LANCAMENTOS_KPIS!$C:$C,C11,LANCAMENTOS_KPIS!$D:$D,D11)/SUMIFS(LANCAMENTOS_KPIS!$S:$S,LANCAMENTOS_KPIS!$C:$C,C11,LANCAMENTOS_KPIS!$D:$D,D11),0)","v":{"v":0,"d":"0.00%"}},{"$nulls":3},{"$f":"IFERROR(VLOOKUP(R11,CADASTROS!$C:$K,2,FALSE),\"\")","v":""},{"$f":"IF(R11=\"\",0,SUMIFS(RENTABILIDADE_PRODUTO!$K:$K,RENTABILIDADE_PRODUTO!$F:$F,R11))","v":{"v":0,"d":"R£ 0.00"}},{"$f":"IF(R11=\"\",0,SUMIFS(RENTABILIDADE_PRODUTO!$M:$M,RENTABILIDADE_PRODUTO!$F:$F,R11))","v":{"v":0,"d":"R£ 0.00"}},{"v":0,"d":"R£ 0.00"},{"v":0,"d":"0.00%"},{"$f":"IF(R11=\"\",0,SUMIFS(RENTABILIDADE_PRODUTO!$I:$I,RENTABILIDADE_PRODUTO!$F:$F,R11))","v":0},{"v":0,"d":"0.00%"},"","","C",null,null,{"$f":"IF(AD11=\"\",0,SUMIFS(RENTABILIDADE_PRODUTO!$K:$K,RENTABILIDADE_PRODUTO!$P:$P,AD11))","v":{"v":0,"d":"R£ 0.00"}},{"$f":"IF(AD11=\"\",0,SUMIFS(RENTABILIDADE_PRODUTO!$I:$I,RENTABILIDADE_PRODUTO!$P:$P,AD11))","v":0},{"v":0,"d":"R£ 0.00"},{"v":0,"d":"0.00%"},null,{"$f":"METAS!C11","v":0},{"$f":"METAS!D11","v":0},{"$f":"METAS!E11","v":0},{"$f":"METAS!G11","v":{"v":0,"d":"0.00"}},{"$f":"METAS!H11","v":{"v":0,"d":"0.00"}},{"v":0,"d":"0.00"},{"$f":"METAS!K11","v":0},null,{"$f":"OKRS!D11","v":0},{"$f":"OKRS!E11","v":0},{"$f":"OKRS!F11","v":0},{"$f":"OKRS!Q11","v":{"v":0,"d":"0.00%"}},{"$f":"OKRS!R11","v":""},{"$f":"OKRS!G11","v":0}]
[null,null,2026,1,{"$f":"SUMIFS(LANCAMENTOS_KPIS!$H:$H,LANCAMENTOS_KPIS!$C:$C,C12,LANCAMENTOS_KPIS!$D:$D,D12)","v":{"v":0,"d":"R£ 0.00"}},{"$f":"SUMIFS(LANCAMENTOS_KPIS!$J:$J,LANCAMENTOS_KPIS!$C:$C,C12,LANCAMENTOS_KPIS!$D:$D,D12)","v":{"v":0,"d":"R£ 0.00"}},{"v":0,"d":"0.00%"},{"$f":"SUMIFS(LANCAMENTOS_KPIS!$M:$M,LANCAMENTOS_KPIS!$C:$C,C12,LANCAMENTOS_KPIS!$D:$D,D12)","v":{"v":0,"d":"R£ 0.00"}},{"$f":"IFERROR(SUMIFS(LANCAMENTOS_KPIS!$N:$N,LANCAMENTOS_KPIS!$C:$C,C12,LANCAMENTOS_KPIS!$D:$D,D12)/SUMIFS(LANCAMENTOS_KPIS!$R:$R,LANCAMENTOS_KPIS!$C:$C,C12,LANCAMENTOS_KPIS!$D:$D,D12),0)","v":{"v":0,"d":"R£ 0.00"}},{"$f":"SUMIFS(LANCAMENTOS_KPIS!$Y:$Y,LANCAMENTOS_KPIS!$C:$C,C12,LANCAMENTOS_KPIS!$D:$D,D12)","v":{"v":0,"d":"R£ 0.00"}},{"$f":"IFERROR(SUMIFS(LANCAMENTOS_KPIS!$Z:$Z,LANCAMENTOS_KPIS!$C:$C,C12,LANCAMENTOS_KPIS!$D:$D,D12),0)","v":{"v":0,"d":"0.00"}},{"$f":"SUMIFS(LANCAMENTOS_KPIS!$AA:$AA,LANCAMENTOS_KPIS!$C:$C,C12,LANCAMENTOS_KPIS!$D:$D,D12)","v":{"v":0,"d":"R£ 0.00"}},{"$f":"IF(SUMIFS(LANCAMENTOS_KPIS!$O:$O,LANCAMENTOS_KPIS!$C:$C,C12,LANCAMENTOS_KPIS!$D:$D,D12)=0,0,SUMIFS(LANCAMENTOS_KPIS!$P:$P,LANCAMENTOS_KPIS!$C:$C,C12,LANCAMENTOS_KPIS!$D:$D,D12)/SUMIFS(LANCAMENTOS_KPIS!$O:$O,LANCAMENTOS_KPIS!$C:$C,C12,LANCAMENTOS_KPIS!$D:$D,D12))","v":{"v":0,"d":"0.00%"}},{"$f":"IFERROR(SUMIFS(LANCAMENTOS_KPIS!$H:$H,LANCAMENTOS_KPIS!$C:$C,C12,LANCAMENTOS_KPIS!$D:$D,D12)/SUMIFS(LANCAMENTOS_KPIS!$P:$P,LANCAMENTOS_KPIS!$C:$C,C12,LANCAMENTOS_KPIS!$D:$D,D12),0)","v":{"v":0,"d":"R£ 0.00"}},{"$f":"IFERROR(SUMIFS(LANCAMENTOS_KPIS!$T:$T,LANCAMENTOS_KPIS!$C:$C,C12,LANCAMENTOS_KPIS!$D:$D,D12)/SUMIFS(LANCAMENTOS_KPIS!$S:$S,LANCAMENTOS_KPIS!$C:$C,C12,LANCAMENTOS_KPIS!$D:$D,D12),0)","v":{"v":0,"d":"0.00%"}},{"$nulls":3},{"$f":"IFERROR(VLOOKUP(R12,CADASTROS!$C:$K,2,FALSE),\"\")","v":""},{"$f":"IF(R12=\"\",0,SUMIFS(RENTABILIDADE_PRODUTO!$K:$K,RENTABILIDADE_PRODUTO!$F:$F,R12))","v":{"v":0,"d":"R£ 0.00"}},{"$f":"IF(R12=\"\",0,SUMIFS(RENTABILIDADE_PRODUTO!$M:$M,RENTABILIDADE_PRODUTO!$F:$F,R12))","v":{"v":0,"d":"R£ 0.00"}},{"v":0,"d":"R£ 0.00"},{"v":0,"d":"0.00%"},{"$f":"IF(R12=\"\",0,SUMIFS(RENTABILIDADE_PRODUTO!$I:$I,RENTABILIDADE_PRODUTO!$F:$F,R12))","v":0},{"v":0,"d":"0.00%"},"","","C",null,null,{"$f":"IF(AD12=\"\",0,SUMIFS(RENTABILIDADE_PRODUTO!$K:$K,RENTABILIDADE_PRODUTO!$P:$P,AD12))","v":{"v":0,"d":"R£ 0.00"}},{"$f":"IF(AD12=\"\",0,SUMIFS(RENTABILIDADE_PRODUTO!$I:$I,RENTABILIDADE_PRODUTO!$P:$P,AD12))","v":0},{"v":0,"d":"R£ 0.00"},{"v":0,"d":"0.00%"},null,{"$f":"METAS!C12","v":0},{"$f":"METAS!D12","v":0},{"$f":"METAS!E12","v":0},{"$f":"METAS!G12","v":{"v":0,"d":"0.00"}},{"$f":"METAS!H12","v":{"v":0,"d":"0.00"}},{"v":0,"d":"0.00"},{"$f":"METAS!K12","v":0},null,{"$f":"OKRS!D12","v":0},{"$f":"OKRS!E12","v":0},{"$f":"OKRS!F12","v":0},{"$f":"OKRS!Q12","v":{"v":0,"d":"0.00%"}},{"$f":"OKRS!R12","v":""},{"$f":"OKRS!G12","v":0}]
[null,null,2026,1,{"$f":"SUMIFS(LANCAMENTOS_KPIS!$H:$H,LANCAMENTOS_KPIS!$C:$C,C13,LANCAMENTOS_KPIS!$D:$D,D13)","v":{"v":0,"d":"R£ 0.00"}},{"$f":"SUMIFS(LANCAMENTOS_KPIS!$J:$J,LANCAMENTOS_KPIS!$C:$C,C13,LANCAMENTOS_KPIS!$D:$D,D13)","v":{"v":0,"d":"R£ 0.00"}},{"v":0,"d":"0.00%"},{"$f":"SUMIFS(LANCAMENTOS_KPIS!$M:$M,LANCAMENTOS_KPIS!$C:$C,C13,LANCAMENTOS_KPIS!$D:$D,D13)","v":{"v":0,"d":"R£ 0.00"}},{"$f":"IFERROR(SUMIFS(LANCAMENTOS_KPIS!$N:$N,LANCAMENTOS_KPIS!$C:$C,C13,LANCAMENTOS_KPIS!$D:$D,D13)/SUMIFS(LANCAMENTOS_KPIS!$R:$R,LANCAMENTOS_KPIS!$C:$C,C13,LANCAMENTOS_KPIS!$D:$D,D13),0)","v":{"v":0,"d":"R£ 0.00"}},{"$f":"SUMIFS(LANCAMENTOS_KPIS!$Y:$Y,LANCAMENTOS_KPIS!$C:$C,C13,LANCAMENTOS_KPIS!$D:$D,D13)","v":{"v":0,"d":"R£ 0.00"}},{"$f":"IFERROR(SUMIFS(LANCAMENTOS_KPIS!$Z:$Z,LANCAMENTOS_KPIS!$C:$C,C13,LANCAMENTOS_KPIS!$D:$D,D13),0)","v":{"v":0,"d":"0.00"}},{"$f":"SUMIFS(LANCAMENTOS_KPIS!$AA:$AA,LANCAMENTOS_KPIS!$C:$C,C13,LANCAMENTOS_KPIS!$D:$D,D13)","v":{"v":0,"d":"R£ 0.00"}},{"$f":"IF(SUMIFS(LANCAMENTOS_KPIS!$O:$O,LANCAMENTOS_KPIS!$C:$C,C13,LANCAMENTOS_KPIS!$D:$D,D13)=0,0,SUMIFS(LANCAMENTOS_KPIS!$P:$P,LANCAMENTOS_KPIS!$C:$C,C13,LANCAMENTOS_KPIS!$D:$D,D13)/SUMIFS(LANCAMENTOS_KPIS!$O:$O,LANCAMENTOS_KPIS!$C:$C,C13,LANCAMENTOS_KPIS!$D:$D,D13))","v":{"v":0,"d":"0.00%"}},{"$f":"IFERROR(SUMIFS(LANCAMENTOS_KPIS!$H:$H,LANCAMENTOS_KPIS!$C:$C,C13,LANCAMENTOS_KPIS!$D:$D,D13)/SUMIFS(LANCAMENTOS_KPIS!$P:$P,LANCAMENTOS_KPIS!$C:$C,C13,LANCAMENTOS_KPIS!$D:$D,D13),0)","v":{"v":0,"d":"R£ 0.00"}},{"$f":"IFERROR(SUMIFS(LANCAMENTOS_KPIS!$T:$T,LANCAMENTOS_KPIS!$C:$C,C13,LANCAMENTOS_KPIS!$D:$D,D13)/SUMIFS(LANCAMENTOS_KPIS!$S:$S,LANCAMENTOS_KPIS!$C:$C,C13,LANCAMENTOS_KPIS!$D:$D,D13),0)","v":{"v":0,"d":"0.00%"}},{"$nulls":3},{"$f":"IFERROR(VLOOKUP(R13,CADASTROS!$C:$K,2,FALSE),\"\")","v":""},{"$f":"IF(R13=\"\",0,SUMIFS(RENTABILIDADE_PRODUTO!$K:$K,RENTABILIDADE_PRODUTO!$F:$F,R13))","v":{"v":0,"d":"R£ 0.00"}},{"$f":"IF(R13=\"\",0,SUMIFS(RENTABILIDADE_PRODUTO!$M:$M,RENTABILIDADE_PRODUTO!$F:$F,R13))","v":{"v":0,"d":"R£ 0.00"}},{"v":0,"d":"R£ 0.00"},{"v":0,"d":"0.00%"},{"$f":"IF(R13=\"\",0,SUMIFS(RENTABILIDADE_PRODUTO!$I:$I,RENTABILIDADE_PRODUTO!$F:$F,R13))","v":0},{"v":0,"d":"0.00%"},"","","C",null,null,{"$f":"IF(AD13=\"\",0,SUMIFS(RENTABILIDADE_PRODUTO!$K:$K,RENTABILIDADE_PRODUTO!$P:$P,AD13))","v":{"v":0,"d":"R£ 0.00"}},{"$f":"IF(AD13=\"\",0,SUMIFS(RENTABILIDADE_PRODUTO!$I:$I,RENTABILIDADE_PRODUTO!$P:$P,AD13))","v":0},{"v":0,"d":"R£ 0.00"},{"v":0,"d":"0.00%"},null,{"$f":"METAS!C13","v":0},{"$f":"METAS!D13","v":0},{"$f":"METAS!E13","v":0},{"$f":"METAS!G13","v":{"v":0,"d":"0.00"}},{"$f":"METAS!H13","v":{"v":0,"d":"0.00"}},{"v":0,"d":"0.00"},{"$f":"METAS!K13","v":0},null,{"$f":"OKRS!D13","v":0},{"$f":"OKRS!E13","v":0},{"$f":"OKRS!F13","v":0},{"$f":"OKRS!Q13","v":{"v":0,"d":"0.00%"}},{"$f":"OKRS!R13","v":""},{"$f":"OKRS!G13","v":0}]
[null,null,2026,1,{"$f":"SUMIFS(LANCAMENTOS_KPIS!$H:$H,LANCAMENTOS_KPIS!$C:$C,C14,LANCAMENTOS_KPIS!$D:$D,D14)","v":{"v":0,"d":"R£ 0.00"}},{"$f":"SUMIFS(LANCAMENTOS_KPIS!$J:$J,LANCAMENTOS_KPIS!$C:$C,C14,LANCAMENTOS_KPIS!$D:$D,D14)","v":{"v":0,"d":"R£ 0.00"}},{"v":0,"d":"0.00%"},{"$f":"SUMIFS(LANCAMENTOS_KPIS!$M:$M,LANCAMENTOS_KPIS!$C:$C,C14,LANCAMENTOS_KPIS!$D:$D,D14)","v":{"v":0,"d":"R£ 0.00"}},{"$f":"IFERROR(SUMIFS(LANCAMENTOS_KPIS!$N:$N,LANCAMENTOS_KPIS!$C:$C,C14,LANCAMENTOS_KPIS!$D:$D,D14)/SUMIFS(LANCAMENTOS_KPIS!$R:$R,LANCAMENTOS_KPIS!$C:$C,C14,LANCAMENTOS_KPIS!$D:$D,D14),0)","v":{"v":0,"d":"R£ 0.00"}},{"$f":"SUMIFS(LANCAMENTOS_KPIS!$Y:$Y,LANCAMENTOS_KPIS!$C:$C,C14,LANCAMENTOS_KPIS!$D:$D,D14)","v":{"v":0,"d":"R£ 0.00"}},{"$f":"IFERROR(SUMIFS(LANCAMENTOS_KPIS!$Z:$Z,LANCAMENTOS_KPIS!$C:$C,C14,LANCAMENTOS_KPIS!$D:$D,D14),0)","v":{"v":0,"d":"0.00"}},{"$f":"SUMIFS(LANCAMENTOS_KPIS!$AA:$AA,LANCAMENTOS_KPIS!$C:$C,C14,LANCAMENTOS_KPIS!$D:$D,D14)","v":{"v":0,"d":"R£ 0.00"}},{"$f":"IF(SUMIFS(LANCAMENTOS_KPIS!$O:$O,LANCAMENTOS_KPIS!$C:$C,C14,LANCAMENTOS_KPIS!$D:$D,D14)=0,0,SUMIFS(LANCAMENTOS_KPIS!$P:$P,LANCAMENTOS_KPIS!$C:$C,C14,LANCAMENTOS_KPIS!$D:$D,D14)/SUMIFS(LANCAMENTOS_KPIS!$O:$O,LANCAMENTOS_KPIS!$C:$C,C14,LANCAMENTOS_KPIS!$D:$D,D14))","v":{"v":0,"d":"0.00%"}},{"$f":"IFERROR(SUMIFS(LANCAMENTOS_KPIS!$H:$H,LANCAMENTOS_KPIS!$C:$C,C14,LANCAMENTOS_KPIS!$D:$D,D14)/SUMIFS(LANCAMENTOS_KPIS!$P:$P,LANCAMENTOS_KPIS!$C:$C,C14,LANCAMENTOS_KPIS!$D:$D,D14),0)","v":{"v":0,"d":"R£ 0.00"}},{"$f":"IFERROR(SUMIFS(LANCAMENTOS_KPIS!$T:$T,LANCAMENTOS_KPIS!$C:$C,C14,LANCAMENTOS_KPIS!$D:$D,D14)/SUMIFS(LANCAMENTOS_KPIS!$S:$S,LANCAMENTOS_KPIS!$C:$C,C14,LANCAMENTOS_KPIS!$D:$D,D14),0)","v":{"v":0,"d":"0.00%"}},{"$nulls":3},{"$f":"IFERROR(VLOOKUP(R14,CADASTROS!$C:$K,2,FALSE),\"\")","v":""},{"$f":"IF(R14=\"\",0,SUMIFS(RENTABILIDADE_PRODUTO!$K:$K,RENTABILIDADE_PRODUTO!$F:$F,R14))","v":{"v":0,"d":"R£ 0.00"}},{"$f":"IF(R14=\"\",0,SUMIFS(RENTABILIDADE_PRODUTO!$M:$M,RENTABILIDADE_PRODUTO!$F:$F,R14))","v":{"v":0,"d":"R£ 0.00"}},{"v":0,"d":"R£ 0.00"},{"v":0,"d":"0.00%"},{"$f":"IF(R14=\"\",0,SUMIFS(RENTABILIDADE_PRODUTO!$I:$I,RENTABILIDADE_PRODUTO!$F:$F,R14))","v":0},{"v":0,"d":"0.00%"},"","","C",null,null,{"$f":"IF(AD14=\"\",0,SUMIFS(RENTABILIDADE_PRODUTO!$K:$K,RENTABILIDADE_PRODUTO!$P:$P,AD14))","v":{"v":0,"d":"R£ 0.00"}},{"$f":"IF(AD14=\"\",0,SUMIFS(RENTABILIDADE_PRODUTO!$I:$I,RENTABILIDADE_PRODUTO!$P:$P,AD14))","v":0},{"v":0,"d":"R£ 0.00"},{"v":0,"d":"0.00%"},null,{"$f":"METAS!C14","v":0},{"$f":"METAS!D14","v":0},{"$f":"METAS!E14","v":0},{"$f":"METAS!G14","v":{"v":0,"d":"0.00"}},{"$f":"METAS!H14","v":{"v":0,"d":"0.00"}},{"v":0,"d":"0.00"},{"$f":"METAS!K14","v":0},null,{"$f":"OKRS!D14","v":0},{"$f":"OKRS!E14","v":0},{"$f":"OKRS!F14","v":0},{"$f":"OKRS!Q14","v":{"v":0,"d":"0.00%"}},{"$f":"OKRS!R14","v":""},{"$f":"OKRS!G14","v":0}]
[null,null,2026,1,{"$f":"SUMIFS(LANCAMENTOS_KPIS!$H:$H,LANCAMENTOS_KPIS!$C:$C,C15,LANCAMENTOS_KPIS!$D:$D,D15)","v":{"v":0,"d":"R£ 0.00"}},{"$f":"SUMIFS(LANCAMENTOS_KPIS!$J:$J,LANCAMENTOS_KPIS!$C:$C,C15,LANCAMENTOS_KPIS!$D:$D,D15)","v":{"v":0,"d":"R£ 0.00"}},{"v":0,"d":"0.00%"},{"$f":"SUMIFS(LANCAMENTOS_KPIS!$M:$M,LANCAMENTOS_KPIS!$C:$C,C15,LANCAMENTOS_KPIS!$D:$D,D15)","v":{"v":0,"d":"R£ 0.00"}},{"$f":"IFERROR(SUMIFS(LANCAMENTOS_KPIS!$N:$N,LANCAMENTOS_KPIS!$C:$C,C15,LANCAMENTOS_KPIS!$D:$D,D15)/SUMIFS(LANCAMENTOS_KPIS!$R:$R,LANCAMENTOS_KPIS!$C:$C,C15,LANCAMENTOS_KPIS!$D:$D,D15),0)","v":{"v":0,"d":"R£ 0.00"}},{"$f":"SUMIFS(LANCAMENTOS_KPIS!$Y:$Y,LANCAMENTOS_KPIS!$C:$C,C15,LANCAMENTOS_KPIS!$D:$D,D15)","v":{"v":0,"d":"R£ 0.00"}},{"$f":"IFERROR(SUMIFS(LANCAMENTOS_KPIS!$Z:$Z,LANCAMENTOS_KPIS!$C:$C,C15,LANCAMENTOS_KPIS!$D:$D,D15),0)","v":{"v":0,"d":"0.00"}},{"$f":"SUMIFS(LANCAMENTOS_KPIS!$AA:$AA,LANCAMENTOS_KPIS!$C:$C,C15,LANCAMENTOS_KPIS!$D:$D,D15)","v":{"v":0,"d":"R£ 0.00"}},{"$f":"IF(SUMIFS(LANCAMENTOS_KPIS!$O:$O,LANCAMENTOS_KPIS!$C:$C,C15,LANCAMENTOS_KPIS!$D:$D,D15)=0,0,SUMIFS(LANCAMENTOS_KPIS!$P:$P,LANCAMENTOS_KPIS!$C:$C,C15,LANCAMENTOS_KPIS!$D:$D,D15)/SUMIFS(LANCAMENTOS_KPIS!$O:$O,LANCAMENTOS_KPIS!$C:$C,C15,LANCAMENTOS_KPIS!$D:$D,D15))","v":{"v":0,"d":"0.00%"}},{"$f":"IFERROR(SUMIFS(LANCAMENTOS_KPIS!$H:$H,LANCAMENTOS_KPIS!$C:$C,C15,LANCAMENTOS_KPIS!$D:$D,D15)/SUMIFS(LANCAMENTOS_KPIS!$P:$P,LANCAMENTOS_KPIS!$C:$C,C15,LANCAMENTOS_KPIS!$D:$D,D15),0)","v":{"v":0,"d":"R£ 0.00"}},{"$f":"IFERROR(SUMIFS(LANCAMENTOS_KPIS!$T:$T,LANCAMENTOS_KPIS!$C:$C,C15,LANCAMENTOS_KPIS!$D:$D,D15)/SUMIFS(LANCAMENTOS_KPIS!$S:$S,LANCAMENTOS_KPIS!$C:$C,C15,LANCAMENTOS_KPIS!$D:$D,D15),0)","v":{"v":0,"d":"0.00%"}},{"$nulls":3},{"$f":"IFERROR(VLOOKUP(R15,CADASTROS!$C:$K,2,FALSE),\"\")","v":""},{"$f":"IF(R15=\"\",0,SUMIFS(RENTABILIDADE_PRODUTO!$K:$K,RENTABILIDADE_PRODUTO!$F:$F,R15))","v":{"v":0,"d":"R£ 0.00"}},{"$f":"IF(R15=\"\",0,SUMIFS(RENTABILIDADE_PRODUTO!$M:$M,RENTABILIDADE_PRODUTO!$F:$F,R15))","v":{"v":0,"d":"R£ 0.00"}},{"v":0,"d":"R£ 0.00"},{"v":0,"d":"0.00%"},{"$f":"IF(R15=\"\",0,SUMIFS(RENTABILIDADE_PRODUTO!$I:$I,RENTABILIDADE_PRODUTO!$F:$F,R15))","v":0},{"v":0,"d":"0.00%"},"","","C",null,null,{"$f":"IF(AD15=\"\",0,SUMIFS(RENTABILIDADE_PRODUTO!$K:$K,RENTABILIDADE_PRODUTO!$P:$P,AD15))","v":{"v":0,"d":"R£ 0.00"}},{"$f":"IF(AD15=\"\",0,SUMIFS(RENTABILIDADE_PRODUTO!$I:$I,RENTABILIDADE_PRODUTO!$P:$P,AD15))","v":0},{"v":0,"d":"R£ 0.00"},{"v":0,"d":"0.00%"},null,{"$f":"METAS!C15","v":0},{"$f":"METAS!D15","v":0},{"$f":"METAS!E15","v":0},{"$f":"METAS!G15","v":{"v":0,"d":"0.00"}},{"$f":"METAS!H15","v":{"v":0,"d":"0.00"}},{"v":0,"d":"0.00"},{"$f":"METAS!K15","v":0},null,{"$f":"OKRS!D15","v":0},{"$f":"OKRS!E15","v":0},{"$f":"OKRS!F15","v":0},{"$f":"OKRS!Q15","v":{"v":0,"d":"0.00%"}},{"$f":"OKRS!R15","v":""},{"$f":"OKRS!G15","v":0}]
[null,null,2026,1,{"$f":"SUMIFS(LANCAMENTOS_KPIS!$H:$H,LANCAMENTOS_KPIS!$C:$C,C16,LANCAMENTOS_KPIS!$D:$D,D16)","v":{"v":0,"d":"R£ 0.00"}},{"$f":"SUMIFS(LANCAMENTOS_KPIS!$J:$J,LANCAMENTOS_KPIS!$C:$C,C16,LANCAMENTOS_KPIS!$D:$D,D16)","v":{"v":0,"d":"R£ 0.00"}},{"v":0,"d":"0.00%"},{"$f":"SUMIFS(LANCAMENTOS_KPIS!$M:$M,LANCAMENTOS_KPIS!$C:$C,C16,LANCAMENTOS_KPIS!$D:$D,D16)","v":{"v":0,"d":"R£ 0.00"}},{"$f":"IFERROR(SUMIFS(LANCAMENTOS_KPIS!$N:$N,LANCAMENTOS_KPIS!$C:$C,C16,LANCAMENTOS_KPIS!$D:$D,D16)/SUMIFS(LANCAMENTOS_KPIS!$R:$R,LANCAMENTOS_KPIS!$C:$C,C16,LANCAMENTOS_KPIS!$D:$D,D16),0)","v":{"v":0,"d":"R£ 0.00"}},{"$f":"SUMIFS(LANCAMENTOS_KPIS!$Y:$Y,LANCAMENTOS_KPIS!$C:$C,C16,LANCAMENTOS_KPIS!$D:$D,D16)","v":{"v":0,"d":"R£ 0.00"}},{"$f":"IFERROR(SUMIFS(LANCAMENTOS_KPIS!$Z:$Z,LANCAMENTOS_KPIS!$C:$C,C16,LANCAMENTOS_KPIS!$D:$D,D16),0)","v":{"v":0,"d":"0.00"}},{"$f":"SUMIFS(LANCAMENTOS_KPIS!$AA:$AA,LANCAMENTOS_KPIS!$C:$C,C16,LANCAMENTOS_KPIS!$D:$D,D16)","v":{"v":0,"d":"R£ 0.00"}},{"$f":"IF(SUMIFS(LANCAMENTOS_KPIS!$O:$O,LANCAMENTOS_KPIS!$C:$C,C16,LANCAMENTOS_KPIS!$D:$D,D16)=0,0,SUMIFS(LANCAMENTOS_KPIS!$P:$P,LANCAMENTOS_KPIS!$C:$C,C16,LANCAMENTOS_KPIS!$D:$D,D16)/SUMIFS(LANCAMENTOS_KPIS!$O:$O,LANCAMENTOS_KPIS!$C:$C,C16,LANCAMENTOS_KPIS!$D:$D,D16))","v":{"v":0,"d":"0.00%"}},{"$f":"IFERROR(SUMIFS(LANCAMENTOS_KPIS!$H:$H,LANCAMENTOS_KPIS!$C:$C,C16,LANCAMENTOS_KPIS!$D:$D,D16)/SUMIFS(LANCAMENTOS_KPIS!$P:$P,LANCAMENTOS_KPIS!$C:$C,C16,LANCAMENTOS_KPIS!$D:$D,D16),0)","v":{"v":0,"d":"R£ 0.00"}},{"$f":"IFERROR(SUMIFS(LANCAMENTOS_KPIS!$T:$T,LANCAMENTOS_KPIS!$C:$C,C16,LANCAMENTOS_KPIS!$D:$D,D16)/SUMIFS(LANCAMENTOS_KPIS!$S:$S,LANCAMENTOS_KPIS!$C:$C,C16,LANCAMENTOS_KPIS!$D:$D,D16),0)","v":{"v":0,"d":"0.00%"}},{"$nulls":3},{"$f":"IFERROR(VLOOKUP(R16,CADASTROS!$C:$K,2,FALSE),\"\")","v":""},{"$f":"IF(R16=\"\",0,SUMIFS(RENTABILIDADE_PRODUTO!$K:$K,RENTABILIDADE_PRODUTO!$F:$F,R16))","v":{"v":0,"d":"R£ 0.00"}},{"$f":"IF(R16=\"\",0,SUMIFS(RENTABILIDADE_PRODUTO!$M:$M,RENTABILIDADE_PRODUTO!$F:$F,R16))","v":{"v":0,"d":"R£ 0.00"}},{"v":0,"d":"R£ 0.00"},{"v":0,"d":"0.00%"},{"$f":"IF(R16=\"\",0,SUMIFS(RENTABILIDADE_PRODUTO!$I:$I,RENTABILIDADE_PRODUTO!$F:$F,R16))","v":0},{"v":0,"d":"0.00%"},"","","C",null,null,{"$f":"IF(AD16=\"\",0,SUMIFS(RENTABILIDADE_PRODUTO!$K:$K,RENTABILIDADE_PRODUTO!$P:$P,AD16))","v":{"v":0,"d":"R£ 0.00"}},{"$f":"IF(AD16=\"\",0,SUMIFS(RENTABILIDADE_PRODUTO!$I:$I,RENTABILIDADE_PRODUTO!$P:$P,AD16))","v":0},{"v":0,"d":"R£ 0.00"},{"v":0,"d":"0.00%"},null,{"$f":"METAS!C16","v":0},{"$f":"METAS!D16","v":0},{"$f":"METAS!E16","v":0},{"$f":"METAS!G16","v":{"v":0,"d":"0.00"}},{"$f":"METAS!H16","v":{"v":0,"d":"0.00"}},{"v":0,"d":"0.00"},{"$f":"METAS!K16","v":0},null,{"$f":"OKRS!D16","v":0},{"$f":"OKRS!E16","v":0},{"$f":"OKRS!F16","v":0},{"$f":"OKRS!Q16","v":{"v":0,"d":"0.00%"}},{"$f":"OKRS!R16","v":""},{"$f":"OKRS!G16","v":0}]
[null,null,2026,1,{"$f":"SUMIFS(LANCAMENTOS_KPIS!$H:$H,LANCAMENTOS_KPIS!$C:$C,C17,LANCAMENTOS_KPIS!$D:$D,D17)","v":{"v":0,"d":"R£ 0.00"}},{"$f":"SUMIFS(LANCAMENTOS_KPIS!$J:$J,LANCAMENTOS_KPIS!$C:$C,C17,LANCAMENTOS_KPIS!$D:$D,D17)","v":{"v":0,"d":"R£ 0.00"}},{"v":0,"d":"0.00%"},{"$f":"SUMIFS(LANCAMENTOS_KPIS!$M:$M,LANCAMENTOS_KPIS!$C:$C,C17,LANCAMENTOS_KPIS!$D:$D,D17)","v":{"v":0,"d":"R£ 0.00"}},{"$f":"IFERROR(SUMIFS(LANCAMENTOS_KPIS!$N:$N,LANCAMENTOS_KPIS!$C:$C,C17,LANCAMENTOS_KPIS!$D:$D,D17)/SUMIFS(LANCAMENTOS_KPIS!$R:$R,LANCAMENTOS_KPIS!$C:$C,C17,LANCAMENTOS_KPIS!$D:$D,D17),0)","v":{"v":0,"d":"R£ 0.00"}},{"$f":"SUMIFS(LANCAMENTOS_KPIS!$Y:$Y,LANCAMENTOS_KPIS!$C:$C,C17,LANCAMENTOS_KPIS!$D:$D,D17)","v":{"v":0,"d":"R£ 0.00"}},{"$f":"IFERROR(SUMIFS(LANCAMENTOS_KPIS!$Z:$Z,LANCAMENTOS_KPIS!$C:$C,C17,LANCAMENTOS_KPIS!$D:$D,D17),0)","v":{"v":0,"d":"0.00"}},{"$f":"SUMIFS(LANCAMENTOS_KPIS!$AA:$AA,LANCAMENTOS_KPIS!$C:$C,C17,LANCAMENTOS_KPIS!$D:$D,D17)","v":{"v":0,"d":"R£ 0.00"}},{"$f":"IF(SUMIFS(LANCAMENTOS_KPIS!$O:$O,LANCAMENTOS_KPIS!$C:$C,C17,LANCAMENTOS_KPIS!$D:$D,D17)=0,0,SUMIFS(LANCAMENTOS_KPIS!$P:$P,LANCAMENTOS_KPIS!$C:$C,C17,LANCAMENTOS_KPIS!$D:$D,D17)/SUMIFS(LANCAMENTOS_KPIS!$O:$O,LANCAMENTOS_KPIS!$C:$C,C17,LANCAMENTOS_KPIS!$D:$D,D17))","v":{"v":0,"d":"0.00%"}},{"$f":"IFERROR(SUMIFS(LANCAMENTOS_KPIS!$H:$H,LANCAMENTOS_KPIS!$C:$C,C17,LANCAMENTOS_KPIS!$D:$D,D17)/SUMIFS(LANCAMENTOS_KPIS!$P:$P,LANCAMENTOS_KPIS!$C:$C,C17,LANCAMENTOS_KPIS!$D:$D,D17),0)","v":{"v":0,"d":"R£ 0.00"}},{"$f":"IFERROR(SUMIFS(LANCAMENTOS_KPIS!$T:$T,LANCAMENTOS_KPIS!$C:$C,C17,LANCAMENTOS_KPIS!$D:$D,D17)/SUMIFS(LANCAMENTOS_KPIS!$S:$S,LANCAMENTOS_KPIS!$C:$C,C17,LANCAMENTOS_KPIS!$D:$D,D17),0)","v":{"v":0,"d":"0.00%"}},{"$nulls":3},{"$f":"IFERROR(VLOOKUP(R17,CADASTROS!$C:$K,2,FALSE),\"\")","v":""},{"$f":"IF(R17=\"\",0,SUMIFS(RENTABILIDADE_PRODUTO!$K:$K,RENTABILIDADE_PRODUTO!$F:$F,R17))","v":{"v":0,"d":"R£ 0.00"}},{"$f":"IF(R17=\"\",0,SUMIFS(RENTABILIDADE_PRODUTO!$M:$M,RENTABILIDADE_PRODUTO!$F:$F,R17))","v":{"v":0,"d":"R£ 0.00"}},{"v":0,"d":"R£ 0.00"},{"v":0,"d":"0.00%"},{"$f":"IF(R17=\"\",0,SUMIFS(RENTABILIDADE_PRODUTO!$I:$I,RENTABILIDADE_PRODUTO!$F:$F,R17))","v":0},{"v":0,"d":"0.00%"},"","","C",null,null,{"$f":"IF(AD17=\"\",0,SUMIFS(RENTABILIDADE_PRODUTO!$K:$K,RENTABILIDADE_PRODUTO!$P:$P,AD17))","v":{"v":0,"d":"R£ 0.00"}},{"$f":"IF(AD17=\"\",0,SUMIFS(RENTABILIDADE_PRODUTO!$I:$I,RENTABILIDADE_PRODUTO!$P:$P,AD17))","v":0},{"v":0,"d":"R£ 0.00"},{"v":0,"d":"0.00%"},null,{"$f":"METAS!C17","v":0},{"$f":"METAS!D17","v":0},{"$f":"METAS!E17","v":0},{"$f":"METAS!G17","v":{"v":0,"d":"0.00"}},{"$f":"METAS!H17","v":{"v":0,"d":"0.00"}},{"v":0,"d":"0.00"},{"$f":"METAS!K17","v":0},null,{"$f":"OKRS!D17","v":0},{"$f":"OKRS!E17","v":0},{"$f":"OKRS!F17","v":0},{"$f":"OKRS!Q17","v":{"v":0,"d":"0.00%"}},{"$f":"OKRS!R17","v":""},{"$f":"OKRS!G17","v":0}]
[null,null,2026,1,{"$f":"SUMIFS(LANCAMENTOS_KPIS!$H:$H,LANCAMENTOS_KPIS!$C:$C,C18,LANCAMENTOS_KPIS!$D:$D,D18)","v":{"v":0,"d":"R£ 0.00"}},{"$f":"SUMIFS(LANCAMENTOS_KPIS!$J:$J,LANCAMENTOS_KPIS!$C:$C,C18,LANCAMENTOS_KPIS!$D:$D,D18)","v":{"v":0,"d":"R£ 0.00"}},{"v":0,"d":"0.00%"},{"$f":"SUMIFS(LANCAMENTOS_KPIS!$M:$M,LANCAMENTOS_KPIS!$C:$C,C18,LANCAMENTOS_KPIS!$D:$D,D18)","v":{"v":0,"d":"R£ 0.00"}},{"$f":"IFERROR(SUMIFS(LANCAMENTOS_KPIS!$N:$N,LANCAMENTOS_KPIS!$C:$C,C18,LANCAMENTOS_KPIS!$D:$D,D18)/SUMIFS(LANCAMENTOS_KPIS!$R:$R,LANCAMENTOS_KPIS!$C:$C,C18,LANCAMENTOS_KPIS!$D:$D,D18),0)","v":{"v":0,"d":"R£ 0.00"}},{"$f":"SUMIFS(LANCAMENTOS_KPIS!$Y:$Y,LANCAMENTOS_KPIS!$C:$C,C18,LANCAMENTOS_KPIS!$D:$D,D18)","v":{"v":0,"d":"R£ 0.00"}},{"$f":"IFERROR(SUMIFS(LANCAMENTOS_KPIS!$Z:$Z,LANCAMENTOS_KPIS!$C:$C,C18,LANCAMENTOS_KPIS!$D:$D,D18),0)","v":{"v":0,"d":"0.00"}},{"$f":"SUMIFS(LANCAMENTOS_KPIS!$AA:$AA,LANCAMENTOS_KPIS!$C:$C,C18,LANCAMENTOS_KPIS!$D:$D,D18)","v":{"v":0,"d":"R£ 0.00"}},{"$f":"IF(SUMIFS(LANCAMENTOS_KPIS!$O:$O,LANCAMENTOS_KPIS!$C:$C,C18,LANCAMENTOS_KPIS!$D:$D,D18)=0,0,SUMIFS(LANCAMENTOS_KPIS!$P:$P,LANCAMENTOS_KPIS!$C:$C,C18,LANCAMENTOS_KPIS!$D:$D,D18)/SUMIFS(LANCAMENTOS_KPIS!$O:$O,LANCAMENTOS_KPIS!$C:$C,C18,LANCAMENTOS_KPIS!$D:$D,D18))","v":{"v":0,"d":"0.00%"}},{"$f":"IFERROR(SUMIFS(LANCAMENTOS_KPIS!$H:$H,LANCAMENTOS_KPIS!$C:$C,C18,LANCAMENTOS_KPIS!$D:$D,D18)/SUMIFS(LANCAMENTOS_KPIS!$P:$P,LANCAMENTOS_KPIS!$C:$C,C18,LANCAMENTOS_KPIS!$D:$D,D18),0)","v":{"v":0,"d":"R£ 0.00"}},{"$f":"IFERROR(SUMIFS(LANCAMENTOS_KPIS!$T:$T,LANCAMENTOS_KPIS!$C:$C,C18,LANCAMENTOS_KPIS!$D:$D,D18)/SUMIFS(LANCAMENTOS_KPIS!$S:$S,LANCAMENTOS_KPIS!$C:$C,C18,LANCAMENTOS_KPIS!$D:$D,D18),0)","v":{"v":0,"d":"0.00%"}},{"$nulls":3},{"$f":"IFERROR(VLOOKUP(R18,CADASTROS!$C:$K,2,FALSE),\"\")","v":""},{"$f":"IF(R18=\"\",0,SUMIFS(RENTABILIDADE_PRODUTO!$K:$K,RENTABILIDADE_PRODUTO!$F:$F,R18))","v":{"v":0,"d":"R£ 0.00"}},{"$f":"IF(R18=\"\",0,SUMIFS(RENTABILIDADE_PRODUTO!$M:$M,RENTABILIDADE_PRODUTO!$F:$F,R18))","v":{"v":0,"d":"R£ 0.00"}},{"v":0,"d":"R£ 0.00"},{"v":0,"d":"0.00%"},{"$f":"IF(R18=\"\",0,SUMIFS(RENTABILIDADE_PRODUTO!$I:$I,RENTABILIDADE_PRODUTO!$F:$F,R18))","v":0},{"v":0,"d":"0.00%"},"","","C",null,null,{"$f":"IF(AD18=\"\",0,SUMIFS(RENTABILIDADE_PRODUTO!$K:$K,RENTABILIDADE_PRODUTO!$P:$P,AD18))","v":{"v":0,"d":"R£ 0.00"}},{"$f":"IF(AD18=\"\",0,SUMIFS(RENTABILIDADE_PRODUTO!$I:$I,RENTABILIDADE_PRODUTO!$P:$P,AD18))","v":0},{"v":0,"d":"R£ 0.00"},{"v":0,"d":"0.00%"},null,{"$f":"METAS!C18","v":0},{"$f":"METAS!D18","v":0},{"$f":"METAS!E18","v":0},{"$f":"METAS!G18","v":{"v":0,"d":"0.00"}},{"$f":"METAS!H18","v":{"v":0,"d":"0.00"}},{"v":0,"d":"0.00"},{"$f":"METAS!K18","v":0},null,{"$f":"OKRS!D18","v":0},{"$f":"OKRS!E18","v":0},{"$f":"OKRS!F18","v":0},{"$f":"OKRS!Q18","v":{"v":0,"d":"0.00%"}},{"$f":"OKRS!R18","v":""},{"$f":"OKRS!G18","v":0}]
[null,null,2026,1,{"$f":"SUMIFS(LANCAMENTOS_KPIS!$H:$H,LANCAMENTOS_KPIS!$C:$C,C19,LANCAMENTOS_KPIS!$D:$D,D19)","v":{"v":0,"d":"R£ 0.00"}},{"$f":"SUMIFS(LANCAMENTOS_KPIS!$J:$J,LANCAMENTOS_KPIS!$C:$C,C19,LANCAMENTOS_KPIS!$D:$D,D19)","v":{"v":0,"d":"R£ 0.00"}},{"v":0,"d":"0.00%"},{"$f":"SUMIFS(LANCAMENTOS_KPIS!$M:$M,LANCAMENTOS_KPIS!$C:$C,C19,LANCAMENTOS_KPIS!$D:$D,D19)","v":{"v":0,"d":"R£ 0.00"}},{"$f":"IFERROR(SUMIFS(LANCAMENTOS_KPIS!$N:$N,LANCAMENTOS_KPIS!$C:$C,C19,LANCAMENTOS_KPIS!$D:$D,D19)/SUMIFS(LANCAMENTOS_KPIS!$R:$R,LANCAMENTOS_KPIS!$C:$C,C19,LANCAMENTOS_KPIS!$D:$D,D19),0)","v":{"v":0,"d":"R£ 0.00"}},{"$f":"SUMIFS(LANCAMENTOS_KPIS!$Y:$Y,LANCAMENTOS_KPIS!$C:$C,C19,LANCAMENTOS_KPIS!$D:$D,D19)","v":{"v":0,"d":"R£ 0.00"}},{"$f":"IFERROR(SUMIFS(LANCAMENTOS_KPIS!$Z:$Z,LANCAMENTOS_KPIS!$C:$C,C19,LANCAMENTOS_KPIS!$D:$D,D19),0)","v":{"v":0,"d":"0.00"}},{"$f":"SUMIFS(LANCAMENTOS_KPIS!$AA:$AA,LANCAMENTOS_KPIS!$C:$C,C19,LANCAMENTOS_KPIS!$D:$D,D19)","v":{"v":0,"d":"R£ 0.00"}},{"$f":"IF(SUMIFS(LANCAMENTOS_KPIS!$O:$O,LANCAMENTOS_KPIS!$C:$C,C19,LANCAMENTOS_KPIS!$D:$D,D19)=0,0,SUMIFS(LANCAMENTOS_KPIS!$P:$P,LANCAMENTOS_KPIS!$C:$C,C19,LANCAMENTOS_KPIS!$D:$D,D19)/SUMIFS(LANCAMENTOS_KPIS!$O:$O,LANCAMENTOS_KPIS!$C:$C,C19,LANCAMENTOS_KPIS!$D:$D,D19))","v":{"v":0,"d":"0.00%"}},{"$f":"IFERROR(SUMIFS(LANCAMENTOS_KPIS!$H:$H,LANCAMENTOS_KPIS!$C:$C,C19,LANCAMENTOS_KPIS!$D:$D,D19)/SUMIFS(LANCAMENTOS_KPIS!$P:$P,LANCAMENTOS_KPIS!$C:$C,C19,LANCAMENTOS_KPIS!$D:$D,D19),0)","v":{"v":0,"d":"R£ 0.00"}},{"$f":"IFERROR(SUMIFS(LANCAMENTOS_KPIS!$T:$T,LANCAMENTOS_KPIS!$C:$C,C19,LANCAMENTOS_KPIS!$D:$D,D19)/SUMIFS(LANCAMENTOS_KPIS!$S:$S,LANCAMENTOS_KPIS!$C:$C,C19,LANCAMENTOS_KPIS!$D:$D,D19),0)","v":{"v":0,"d":"0.00%"}},{"$nulls":3},{"$f":"IFERROR(VLOOKUP(R19,CADASTROS!$C:$K,2,FALSE),\"\")","v":""},{"$f":"IF(R19=\"\",0,SUMIFS(RENTABILIDADE_PRODUTO!$K:$K,RENTABILIDADE_PRODUTO!$F:$F,R19))","v":{"v":0,"d":"R£ 0.00"}},{"$f":"IF(R19=\"\",0,SUMIFS(RENTABILIDADE_PRODUTO!$M:$M,RENTABILIDADE_PRODUTO!$F:$F,R19))","v":{"v":0,"d":"R£ 0.00"}},{"v":0,"d":"R£ 0.00"},{"v":0,"d":"0.00%"},{"$f":"IF(R19=\"\",0,SUMIFS(RENTABILIDADE_PRODUTO!$I:$I,RENTABILIDADE_PRODUTO!$F:$F,R19))","v":0},{"v":0,"d":"0.00%"},"","","C",null,null,{"$f":"IF(AD19=\"\",0,SUMIFS(RENTABILIDADE_PRODUTO!$K:$K,RENTABILIDADE_PRODUTO!$P:$P,AD19))","v":{"v":0,"d":"R£ 0.00"}},{"$f":"IF(AD19=\"\",0,SUMIFS(RENTABILIDADE_PRODUTO!$I:$I,RENTABILIDADE_PRODUTO!$P:$P,AD19))","v":0},{"v":0,"d":"R£ 0.00"},{"v":0,"d":"0.00%"},null,{"$f":"METAS!C19","v":0},{"$f":"METAS!D19","v":0},{"$f":"METAS!E19","v":0},{"$f":"METAS!G19","v":{"v":0,"d":"0.00"}},{"$f":"METAS!H19","v":{"v":0,"d":"0.00"}},{"v":0,"d":"0.00"},{"$f":"METAS!K19","v":0},null,{"$f":"OKRS!D19","v":0},{"$f":"OKRS!E19","v":0},{"$f":"OKRS!F19","v":0},{"$f":"OKRS!Q19","v":{"v":0,"d":"0.00%"}},{"$f":"OKRS!R19","v":""},{"$f":"OKRS!G19","v":0}]

{"sheet":"RELATORIOS","index":9,"n_rows":34,"n_cols":17,"rows_kept":34,"hidden":true,"merged":[[5,2,5,27]]}
[]
[null,"Instruções","Cadastros","KPIs","Rentabilidade","Simulador","OKRs","Metas","Plano de Ação","Cálculos","Relatórios","Ano:",2026]
[{"$nulls":11},"Mês:",1]
[]
[]
[null,null,"RELATÓRIOS E PAINEL EXECUTIVO"]
[]
[null,null,"Receita Líquida",null,"Margem Contribuição %",null,"Lucro Operacional",null,"CAC",null,"LTV",null,"Ponto de Equilíbrio",null,"Ticket Médio",null,"Conversão"]
[null,null,{"$f":"SUMIFS(LANCAMENTOS_KPIS!$H:$H,LANCAMENTOS_KPIS!$C:$C,$M$2,LANCAMENTOS_KPIS!$D:$D,$M$3)","v":{"v":0,"d":"R£ 0.00"}},null,{"$f":"IF(C9=0,0,SUMIFS(LANCAMENTOS_KPIS!$J:$J,LANCAMENTOS_KPIS!$C:$C,$M$2,LANCAMENTOS_KPIS!$D:$D,$M$3)/C9)","v":{"v":0,"d":"0.00%"}},null,{"$f":"SUMIFS(LANCAMENTOS_KPIS!$M:$M,LANCAMENTOS_KPIS!$C:$C,$M$2,LANCAMENTOS_KPIS!$D:$D,$M$3)","v":{"v":0,"d":"R£ 0.00"}},null,{"$f":"IFERROR(SUMIFS(LANCAMENTOS_KPIS!$N:$N,LANCAMENTOS_KPIS!$C:$C,$M$2,LANCAMENTOS_KPIS!$D:$D,$M$3)/SUMIFS(LANCAMENTOS_KPIS!$R:$R,LANCAMENTOS_KPIS!$C:$C,$M$2,LANCAMENTOS_KPIS!$D:$D,$M$3),0)","v":{"v":0,"d":"R£ 0.00"}},null,{"$f":"SUMIFS(LANCAMENTOS_KPIS!$Y:$Y,LANCAMENTOS_KPIS!$C:$C,$M$2,LANCAMENTOS_KPIS!$D:$D,$M$3)","v":{"v":0,"d":"R£ 0.00"}},null,{"$f":"SUMIFS(LANCAMENTOS_KPIS!$AA:$AA,LANCAMENTOS_KPIS!$C:$C,$M$2,LANCAMENTOS_KPIS!$D:$D,$M$3)","v":{"v":0,"d":"R£ 0.00"}},null,{"$f":"IFERROR(SUMIFS(LANCAMENTOS_KPIS!$H:$H,LANCAMENTOS_KPIS!$C:$C,$M$2,LANCAMENTOS_KPIS!$D:$D,$M$3)/SUMIFS(LANCAMENTOS_KPIS!$P:$P,LANCAMENTOS_KPIS!$C:$C,$M$2,LANCAMENTOS_KPIS!$D:$D,$M$3),0)","v":{"v":0,"d":"R£ 0.00"}},null,{"$f":"IF(SUMIFS(LANCAMENTOS_KPIS!$O:$O,LANCAMENTOS_KPIS!$C:$C,$M$2,LANCAMENTOS_KPIS!$D:$D,$M$3)=0,0,SUMIFS(LANCAMENTOS_KPIS!$P:$P,LANCAMENTOS_KPIS!$C:$C,$M$2,LANCAMENTOS_KPIS!$D:$D,$M$3)/SUMIFS(LANCAMENTOS_KPIS!$O:$O,LANCAMENTOS_KPIS!$C:$C,$M$2,LANCAMENTOS_KPIS!$D:$D,$M$3))","v":{"v":0,"d":"0.00%"}}]
[]
[null,null,"RECEITA E LUCRO POR MÊS"]
[null,null,"Mês","Receita Líquida","Lucro Operacional","Margem %"]
[null,null,1,{"$f":"SUMIFS(LANCAMENTOS_KPIS!$H:$H,LANCAMENTOS_KPIS!$C:$C,$M$2,LANCAMENTOS_KPIS!$D:$D,C13)","v":{"v":0,"d":"R£ 0.00"}},{"$f":"SUMIFS(LANCAMENTOS_KPIS!$M:$M,LANCAMENTOS_KPIS!$C:$C,$M$2,LANCAMENTOS_KPIS!$D:$D,C13)","v":{"v":0,"d":"R£ 0.00"}},{"$f":"IF(D13=0,0,SUMIFS(LANCAMENTOS_KPIS!$J:$J,LANCAMENTOS_KPIS!$C:$C,$M$2,LANCAMENTOS_KPIS!$D:$D,C13)/D13)","v":{"v":0,"d":"0.00%"}}]
[null,null,2]
[null,null,3,"Receita Líquida","Lucro Operacional","Margem %"]
[null,null,4,{"$f":"SUMIFS(LANCAMENTOS_KPIS!$H:$H,LANCAMENTOS_KPIS!$C:$C,$M$2,LANCAMENTOS_KPIS!$D:$D,C16)","v":{"v":0,"d":"R£ 0.00"}},{"$f":"SUMIFS(LANCAMENTOS_KPIS!$M:$M,LANCAMENTOS_KPIS!$C:$C,$M$2,LANCAMENTOS_KPIS!$D:$D,C16)","v":{"v":0,"d":"R£ 0.00"}},{"$f":"IF(D16=0,0,SUMIFS(LANCAMENTOS_KPIS!$J:$J,LANCAMENTOS_KPIS!$C:$C,$M$2,LANCAMENTOS_KPIS!$D:$D,C16)/D16)","v":{"v":0,"d":"0.00%"}}]
[null,null,5]
[null,null,6]
[null,null,7]
[null,null,8]
[null,null,9]
[null,null,10]
[null,null,11]
[null,null,12]
[]
[]
[null,null,"TOP 5 PRODUTOS POR RECEITA",{"$nulls":4},"RESUMO GERAL"]
[null,null,"Produto","Receita","Margem %","Classificação",null,"Indicador","Qtd"]
[null,null,{"$f":"IFERROR(INDEX(CALCULOS!$S$8:$S$100,MATCH(1,CALCULOS!$Z$8:$Z$100,0)),\"\")","v":""},{"$f":"IFERROR(INDEX(CALCULOS!$T$8:$T$100,MATCH(1,CALCULOS!$Z$8:$Z$100,0)),0)","v":{"v":0,"d":"R£ 0.00"}},{"$f":"IFERROR(INDEX(CALCULOS!$W$8:$W$100,MATCH(1,CALCULOS!$Z$8:$Z$100,0)),0)","v":{"v":0,"d":"0.00%"}},{"$f":"IFERROR(INDEX(CALCULOS!$AB$8:$AB$100,MATCH(1,CALCULOS!$Z$8:$Z$100,0)),\"\")","v":""},null,"Metas Atingidas",{"$f":"COUNTIF(METAS!K:K,\"Atingida\")","v":0}]
[null,null,{"$f":"IFERROR(INDEX(CALCULOS!$S$8:$S$100,MATCH(2,CALCULOS!$Z$8:$Z$100,0)),\"\")","v":""},{"$f":"IFERROR(INDEX(CALCULOS!$T$8:$T$100,MATCH(2,CALCULOS!$Z$8:$Z$100,0)),0)","v":{"v":0,"d":"R£ 0.00"}},{"$f":"IFERROR(INDEX(CALCULOS!$W$8:$W$100,MATCH(2,CALCULOS!$Z$8:$Z$100,0)),0)","v":{"v":0,"d":"0.00%"}},{"$f":"IFERROR(INDEX(CALCULOS!$AB$8:$AB$100,MATCH(2,CALCULOS!$Z$8:$Z$100,0)),\"\")","v":""},null,"Metas Abaixo",{"$f":"COUNTIF(METAS!K:K,\"Abaixo\")","v":0}]
[null,null,{"$f":"IFERROR(INDEX(CALCULOS!$S$8:$S$100,MATCH(3,CALCULOS!$Z$8:$Z$100,0)),\"\")","v":""},{"$f":"IFERROR(INDEX(CALCULOS!$T$8:$T$100,MATCH(3,CALCULOS!$Z$8:$Z$100,0)),0)","v":{"v":0,"d":"R£ 0.00"}},{"$f":"IFERROR(INDEX(CALCULOS!$W$8:$W$100,MATCH(3,CALCULOS!$Z$8:$Z$100,0)),0)","v":{"v":0,"d":"0.00%"}},{"$f":"IFERROR(INDEX(CALCULOS!$AB$8:$AB$100,MATCH(3,CALCULOS!$Z$8:$Z$100,0)),\"\")","v":""},null,"OKRs Concluídos",{"$f":"COUNTIF(OKRS!R:R,\"Concluído\")","v":0}]
[null,null,{"$f":"IFERROR(INDEX(CALCULOS!$S$8:$S$100,MATCH(4,CALCULOS!$Z$8:$Z$100,0)),\"\")","v":""},{"$f":"IFERROR(INDEX(CALCULOS!$T$8:$T$100,MATCH(4,CALCULOS!$Z$8:$Z$100,0)),0)","v":{"v":0,"d":"R£ 0.00"}},{"$f":"IFERROR(INDEX(CALCULOS!$W$8:$W$100,MATCH(4,CALCULOS!$Z$8:$Z$100,0)),0)","v":{"v":0,"d":"0.00%"}},{"$f":"IFERROR(INDEX(CALCULOS!$AB$8:$AB$100,MATCH(4,CALCULOS!$Z$8:$Z$100,0)),\"\")","v":""},null,"OKRs Atrasados",{"$f":"COUNTIF(OKRS!R:R,\"Atrasado\")","v":0}]
[null,null,{"$f":"IFERROR(INDEX(CALCULOS!$S$8:$S$100,MATCH(5,CALCULOS!$Z$8:$Z$100,0)),\"\")","v":""},{"$f":"IFERROR(INDEX(CALCULOS!$T$8:$T$100,MATCH(5,CALCULOS!$Z$8:$Z$100,0)),0)","v":{"v":0,"d":"R£ 0.00"}},{"$f":"IFERROR(INDEX(CALCULOS!$W$8:$W$100,MATCH(5,CALCULOS!$Z$8:$Z$100,0)),0)","v":{"v":0,"d":"0.00%"}},{"$f":"IFERROR(INDEX(CALCULOS!$AB$8:$AB$100,MATCH(5,CALCULOS!$Z$8:$Z$100,0)),\"\")","v":""},null,"OKRs Em Andamento",{"$f":"COUNTIF(OKRS!R:R,\"Em andamento\")","v":0}]
[{"$nulls":7},"Ações em Aberto",{"$f":"COUNTIF(PLANO_ACAO!L:L,\"Em andamento\")+COUNTIF(PLANO_ACAO!L:L,\"Não iniciado\")","v":0}]